Workbook

Sheet Données générales
A1: Décompte de salaire
B2: Cellules blanches à compléter
E3: Taux : | F3: 2014
B4: Charges sociales | D4: Total | E4: Employeur | G4: Employé | K4: TRUE
B5: ./. Caisse de pens. | D5: =SUM(E5+G5) & " %" -> 18 % | E5: 10 | F5: % | G5: 8 | H5: % | K5: =IF(K4=TRUE,E7+J7,E7) -> 5.39
B6: ./. Ass acc non prof | D6: =SUM(E6+G6) & " %" -> 1.86 % | E6: 0.4 | F6: % | G6: 1.46 | H6: % | K6: =IF(K4=TRUE,G7+J7,G7) -> 5.21
B7: ./. AVS/AI/APG | D7: =SUM(E7+G7) & " %" -> 10.48 % | E7: 5.33 | F7: % | G7: 5.15 | H7: % | I7: PC familles | J7: 0.06 | L7: %
B8: ="./. AC1 jusqu'à un gain de "&I8 -> ./. AC1 jusqu'à un gain de 10500 | D8: =SUM(E8+G8) & " %" -> 2.2 % | E8: 1.1 | F8: % | G8: 1.1 | H8: % | I8: 10,500 | J8: max
B9: ./. AC2 solidarité | D9: =SUM(E9+G9) & " %" -> 1 % | E9: 0.5 | F9: % | G9: 0.5 | H9: % | I9: 26,250 | J9: max
E10: enfant < 16 ans | G10: apprenti, étudidant | K10: =IF(K4=TRUE,"./. AVS/AI/APG/PCfam","./. AVS/AI/APG") -> ./. AVS/AI/APG/PCfam
B11: Allocation par enfant | E11: 200.00 | G11: 300.00
D12: dès 3ème + 170.-
B13: LPP | D13: ="annuel "&F3 -> annuel 2014 | E13: ="mensuel "&F3 -> mensuel 2014 | G13: 0.00 | I13: 0.00
B14: Seuil d'entrée | D14: 21,060.- | E14: =D14/12 -> 1,755.00 | G14: =E14 -> 1,755.00 | I14: =E15-E14 -> 292.50
B15: Salaire assuré minimum | D15: 24,570.- | E15: =D15/12 -> 2,047.50 | G15: =E15+(E15-E14) -> 2,340.00 | I15: =G22 -> 7,200.00
B16: Salaire assuré maximum | D16: 84,240.- | E16: =D16/12 -> 7,020.00 | G16: =E16 -> 7,020.00 | I16: =(D16-D15)/12 -> 4,972.50
G17: 20,000.00
C19: Employé 1 | E19: Employé 2 | G19: Employé 3 | I19: Employé 4
B20: Nom, Prénom | C20: Dupont Jean | E20: Cornaz Romain | G20: Bonzon Nathalie | I20: Dzanovic Damira
B21: Age | C21: 16 | E21: 35 | G21: 54 | I21: 46
B22: Salaire mensuel brut (yc gratifications) | C22: 680.00 | E22: 4,900.00 | G22: 7,200.00 | I22: 12,700.00 | K22: =SUM(C22:J22) -> 25,480.00
B23: Nombre d'enfants < 16 ans | E23: 1 | G23: 2
B24: Nombre d'enfants apprentis ou étudiants | G24: 1 | I24: 2
B25: + Participation à l'assurance maladie en Fr. | C25: 150.00
B26: + Déplacements en km* | G26: 525 | I26: 650
B27: - Avances salaire, autres retenues | E27: 500.00
B28: Soumis à l' AVS (oui/non) | C28: non | E28: oui | G28: oui | I28: oui
B29: Soumis à la LPP (oui/non) | C29: non | E29: oui | G29: oui | I29: oui
B31: *Frais de déplacements à fr. | C31: 0.80 | D31: par km
B34: Trouver les taux sur Internet : | C34: http://www.centrepatronal.ch/pages/index.php?page=fr/avs/employeur/taux
C35: http://www.avs.vs.ch/siteAVS/Francais/cotisations_cot_cot_par.jsp
D42: Version août 2007 - rév. 1.1.09 - 1.1.14 © Yvan Péguiron - www.infodidac.ch

Sheet Exercice à imprimer
A2: Exercice sur les salaires
B4: Renseignements généraux | N4: Plan comptable | S4: soldes
I5: employeur | K5: employé | N5: 1010 | P5: Poste | S5: 60,000.00
B6: =IF('Données générales '!K4=TRUE,"AVS/AI/APG/PCfam","AVS/AI/APG") -> AVS/AI/APG/PCfam | I6: ='Données générales '!K5 -> 5.39 | J6: % | K6: ='Données générales '!K6 -> 5.21 | L6: % | N6: 2170 | P6: Dettes AVS | S6: =INT('Données générales '!K22*'Données générales '!D7*3/100) * 100*-1 -> -8,000.00
B7: ="AC1 jusqu'à "&'Données générales '!I8&" CHF" -> AC1 jusqu'à 10500 CHF | I7: ='Données générales '!E8 -> 1.10 | J7: % | K7: ='Données générales '!G8 -> 1.10 | L7: % | N7: 2175 | P7: Dettes LPP | S7: =INT('Données générales '!K22 *'Données générales '!D5*2.5/100)*100*-1 -> -11,400.00
B8: ="AC2 solid. de "&'Données générales '!I8&" à "&'Données générales '!I9 -> AC2 solid. de 10500 à 26250 | I8: ='Données générales '!E9 -> 0.50 | J8: % | K8: ='Données générales '!G9 -> 0.50 | L8: % | N8: 2180 | P8: Dettes AF*
B9: Deuxième pilier (LPP) | I9: ='Données générales '!E5 -> 10.00 | J9: % | K9: ='Données générales '!G5 -> 8.00 | L9: % | N9: 5200 | P9: Salaires
B10: Assurance accident prof. | I10: ='Données générales '!E6 -> 0.40 | J10: % | N10: 5270 | P10: Ch. sociales
B11: Assurance accident non prof. | K11: ='Données générales '!G6 -> 1.46 | L11: % | N11: 6700 | P11: ACS
N12: * Caisse de compensation pour les allocations familiales.
B13: Information pour LPP
B14: Salaire maximum assuré | I14: ='Données générales '!E16 -> 7,020.00 | K14: mensuel
B15: Déduction de coordination | I15: ='Données générales '!E15 -> 2,047.50 | K15: mensuel
B16: Seuil d'entrée | I16: ='Données générales '!E14 -> 1,755.00 | K16: mensuel
B18: Informations complémentaires
B19: Les frais de déplacement sont remboursés à fr. | K19: ='Données générales '!C31 -> 0.80 | L19: le km.
B20: Toutes les opérations de trésorerie sont effectuées par le compte jaune.
B21: Allocation enfant fr. | F21: ='Données générales '!E11 -> 200.00 | I21: Allocation apprenti et étudiant fr. | O21: ='Données générales '!G11 -> 300.00
B23: Travail demandé
B25: a) Etablir les fiches de salaires pour les employé(e)s ci-dessous :
B27: Nom | G27: Age | H27: Salaire brut | J27: Participation ass. maladie | M27: Enfants | O27: Déplace. | Q27: Avances de salaire
M28: <16 | N28: 16-25 | O28: en km
B29: ='Données générales '!C20 -> Dupont Jean | G29: ='Données générales '!C$21 -> 16 | H29: ='Données générales '!C$22 -> 680.00 | J29: ='Données générales '!C$25 -> 150.00 | M29: ='Données générales '!C$23 -> 0 | N29: ='Données générales '!C$24 -> 0 | O29: ='Données générales '!C$26 -> 0.00 | Q29: ='Données générales '!C$27 -> 0.00
B30: ='Données générales '!E20 -> Cornaz Romain | G30: ='Données générales '!E$21 -> 35 | H30: ='Données générales '!E$22 -> 4,900.00 | J30: ='Données générales '!E$25 -> 0.00 | M30: ='Données générales '!E$23 -> 1 | N30: ='Données générales '!E$24 -> 0 | O30: ='Données générales '!E$26 -> 0.00 | Q30: ='Données générales '!E$27 -> 500.00
B31: ='Données générales '!G20 -> Bonzon Nathalie | G31: ='Données générales '!G$21 -> 54 | H31: ='Données générales '!G$22 -> 7,200.00 | J31: ='Données générales '!G$25 -> 0.00 | M31: ='Données générales '!G$23 -> 2 | N31: ='Données générales '!G$24 -> 1 | O31: ='Données générales '!G$26 -> 525.00 | Q31: ='Données générales '!G$27 -> 0.00
B32: ='Données générales '!I20 -> Dzanovic Damira | G32: ='Données générales '!I$21 -> 46 | H32: ='Données générales '!I$22 -> 12,700.00 | J32: ='Données générales '!I$25 -> 0.00 | M32: ='Données générales '!I$23 -> 0 | N32: ='Données générales '!I$24 -> 2 | O32: ='Données générales '!I$26 -> 650.00 | Q32: ='Données générales '!I$27 -> 0.00
B35: b) Journaliser les opérations suivantes :
C37: 1. L'entreprise paie la prime d'assurance accident pour le semestre à venir.
D38: Calculer la prime sur un montant de fr. | L38: ='Données générales '!K22*6 -> 152,880.00
C40: 2. Comptabiliser individuellement tous les salaires ci-dessus.
C42: 3. Comptabiliser, en groupant les salaires, les charges sociales à la charge de
D43: l'entreprise. (Part patronale)
C45: 4. Régler par poste les montants dus à l'AVS et à la Caisse de Pension
C47: 5. Faire le décompte de l'allocation familiale pour le mois.
D48: L'entreprise doit 2% sur fr. | J48: ='Corrigé C et D '!E73 -> 24,800.00
D50: La différence, entre le montant dû et les allocations versées ce mois,
D51: est soit payée à la caisse AF, soit remboursée par la caisse AF.

Sheet Fiche A et B
B1: FICHE DE SALAIRE | G1: mois : | I1: Fiche A
B4: Nom : | D4: ='Données générales '!C20 -> Dupont Jean
B5: Avs no | I5: AVS o/n
B6: Enfants < 16 ans | E6: 16 - 25 ans | I6: LPP o/n
C9: Décompte
C10: Salaire déterminant AVS
C12: Allocations enfants
C14: Salaire brut
C16: Charges sociales | E16: totales | G16: à charge | I16: s/CHF
C17: ./. Caisse de pens. | E17: ='Données générales '!$E$5+'Données générales '!$G$5 -> 18 | F17: % | G17: ='Données générales '!$G$5 -> 8 | H17: %
C18: ./. Ass acc non prof | E18: ='Données générales '!$E$6+'Données générales '!$G$6 -> 1.86 | F18: % | G18: ='Données générales '!$G$6 -> 1.46 | H18: % | L18: =SUM(K17:K19) -> 0.00
C19: ='Données générales '!$K$10 -> ./. AVS/AI/APG/PCfam | E19: ='Données générales '!$K$5+'Données générales '!$K$6 -> 10.6 | F19: % | G19: ='Données générales '!$K$6 -> 5.21 | H19: %
C20: ./. AC | E20: ='Données générales '!$E$8+'Données générales '!$G$8 -> 2.2 | F20: % | G20: ='Données générales '!$G$8 -> 1.1 | H20: % | L20: =SUM(K19:K21) -> 0.00
C21: ./. AC solidarité | E21: ='Données générales '!$E$9+'Données générales '!$G$9 -> 1 | F21: % | G21: ='Données générales '!$G$9 -> 0.5 | H21: %
C22: Autres déductions | K22: -
C23: Bonifications | E23: Assurance maladie | K23: +
C25: Frais de déplacements | E25: Nb de km | G25: Tarif | I25: Forfait
F26: km | G26: ='Données générales '!$C$31 -> 0.80 | H26: fr. | J26: fr. | K26: +
C27: Arrondi au fr. sup. | L27: =L28-(L14-L18-L22+L23+L26) -> 0.00
C28: Montant net | K28: Net :
B33: FICHE DE SALAIRE | G33: mois : | I33: Fiche B
B36: Nom : | D36: ='Données générales '!E20 -> Cornaz Romain
B37: Avs no | I37: AVS o/n
B38: Enfants < 16 ans | E38: 16 - 25 ans | I38: LPP o/n
C41: Décompte
C42: Salaire déterminant AVS
C44: Allocations enfants
C46: Salaire brut
C48: Charges sociales | E48: totales | G48: à charge | I48: s/CHF
C49: ./. Caisse de pens. | E49: ='Données générales '!$E$5+'Données générales '!$G$5 -> 18 | F49: % | G49: ='Données générales '!$G$5 -> 8 | H49: %
C50: ./. Ass acc non prof | E50: ='Données générales '!$E$6+'Données générales '!$G$6 -> 1.86 | F50: % | G50: ='Données générales '!$G$6 -> 1.46 | H50: % | L50: =SUM(K49:K51) -> 0.00
C51: ='Données générales '!B7 -> ./. AVS/AI/APG | E51: ='Données générales '!$K$5+'Données générales '!$K$6 -> 10.6 | F51: % | G51: ='Données générales '!$K$6 -> 5.21 | H51: %
C52: ./. AC | E52: ='Données générales '!$E$8+'Données générales '!$G$8 -> 2.2 | F52: % | G52: ='Données générales '!$G$8 -> 1.1 | H52: % | L52: =SUM(K51:K53) -> 0.00
C53: ./. AC solidarité | E53: ='Données générales '!$E$9+'Données générales '!$G$9 -> 1 | F53: % | G53: ='Données générales '!$G$9 -> 0.5 | H53: %
C54: Autres déductions | K54: -
C55: Bonifications | E55: Assurance maladie | K55: +
C57: Frais de déplacements | E57: Nb de km | G57: Tarif | I57: Forfait
F58: km | G58: ='Données générales '!$C$31 -> 0.80 | H58: fr. | J58: fr. | K58: +
C59: Arrondi au fr. sup. | L59: =L60-(L46-L50-L54+L55+L58) -> 0.00
C60: Montant net | K60: Net :

Sheet Fiche C et D
B1: FICHE DE SALAIRE | G1: mois : | I1: Fiche C
B4: Nom : | D4: ='Données générales '!G20 -> Bonzon Nathalie
B5: Avs no | I5: AVS o/n
B6: Enfants < 16 ans | E6: 16 - 25 ans | I6: LPP o/n
C9: Décompte
C10: Salaire déterminant AVS
C12: Allocations enfants
C14: Salaire brut
C16: Charges sociales | E16: totales | G16: à charge | I16: s/CHF
C17: ./. Caisse de pens. | E17: ='Données générales '!$E$5+'Données générales '!$G$5 -> 18 | F17: % | G17: ='Données générales '!$G$5 -> 8 | H17: %
C18: ./. Ass acc non prof | E18: ='Données générales '!$E$6+'Données générales '!$G$6 -> 1.86 | F18: % | G18: ='Données générales '!$G$6 -> 1.46 | H18: % | L18: =SUM(K17:K19) -> 0.00
C19: ='Données générales '!$K$10 -> ./. AVS/AI/APG/PCfam | E19: ='Données générales '!$K$5+'Données générales '!$K$6 -> 10.6 | F19: % | G19: ='Données générales '!$K$6 -> 5.21 | H19: %
C20: ./. AC | E20: ='Données générales '!$E$8+'Données générales '!$G$8 -> 2.2 | F20: % | G20: ='Données générales '!$G$8 -> 1.1 | H20: % | L20: =SUM(K19:K21) -> 0.00
C21: ./. AC solidarité | E21: ='Données générales '!$E$9+'Données générales '!$G$9 -> 1 | F21: % | G21: ='Données générales '!$G$9 -> 0.5 | H21: %
C22: Autres déductions | K22: -
C23: Bonifications | E23: Assurance maladie | K23: +
C25: Frais de déplacements | E25: Nb de km | G25: Tarif | I25: Forfait
F26: km | G26: ='Données générales '!$C$31 -> 0.80 | H26: fr. | J26: fr. | K26: +
C27: Arrondi au fr. sup. | L27: =L28-(L14-L18-L22+L23+L26) -> 0.00
C28: Montant net | K28: Net :
B33: FICHE DE SALAIRE | G33: mois : | I33: Fiche D
B36: Nom : | D36: ='Données générales '!I20 -> Dzanovic Damira
B37: Avs no | I37: AVS o/n
B38: Enfants < 16 ans | E38: 16 - 25 ans | I38: LPP o/n
C41: Décompte
C42: Salaire déterminant AVS
C44: Allocations enfants
C46: Salaire brut
C48: Charges sociales | E48: totales | G48: à charge | I48: s/CHF
C49: ./. Caisse de pens. | E49: ='Données générales '!$E$5+'Données générales '!$G$5 -> 18 | F49: % | G49: ='Données générales '!$G$5 -> 8 | H49: %
C50: ./. Ass acc non prof | E50: ='Données générales '!$E$6+'Données générales '!$G$6 -> 1.86 | F50: % | G50: ='Données générales '!$G$6 -> 1.46 | H50: % | L50: =SUM(K49:K51) -> 0.00
C51: ='Données générales '!$K$10 -> ./. AVS/AI/APG/PCfam | E51: ='Données générales '!$K$5+'Données générales '!$K$6 -> 10.6 | F51: % | G51: ='Données générales '!$K$6 -> 5.21 | H51: %
C52: ./. AC | E52: ='Données générales '!$E$8+'Données générales '!$G$8 -> 2.2 | F52: % | G52: ='Données générales '!$G$8 -> 1.1 | H52: % | L52: =SUM(K51:K53) -> 0.00
C53: ./. AC solidarité | E53: ='Données générales '!$E$9+'Données générales '!$G$9 -> 1 | F53: % | G53: ='Données générales '!$G$9 -> 0.5 | H53: %
C54: Autres déductions | K54: -
C55: Bonifications | E55: Assurance maladie | K55: +
C57: Frais de déplacements | E57: Nb de km | G57: Tarif | I57: Forfait
F58: km | G58: ='Données générales '!$C$31 -> 0.80 | H58: fr. | J58: fr. | K58: +
C59: Arrondi au fr. sup. | L59: =L60-(L46-L50-L54+L55+L58) -> 0.00
C60: Montant net | K60: Net :

Sheet Journal imprimable
B3: Exercice sur les salaires | I3: FALSE
B4: No | C4: Compte à | G4: Libellé | H4: Sommes à
C5: débiter | E5: créditer | H5: débiter | I5: créditer
C6: 1010 | D6: =IF(C6>0,VLOOKUP(C6,'Plan comptable'!$B$2:$C$118,2),"") -> Poste | E6: 9999 | F6: =IF(E6>0,VLOOKUP(E6,'Plan comptable'!$B$2:$C$118,2),"") -> Contrepartie | G6: Solde
C7: 9999 | D7: =IF(C7>0,VLOOKUP(C7,'Plan comptable'!$B$2:$C$118,2),"") -> Contrepartie | E7: 2170 | F7: =IF(E7>0,VLOOKUP(E7,'Plan comptable'!$B$2:$C$118,2),"") -> Dettes AVS / AC | G7: Solde
C8: 9999 | D8: =IF(C8>0,VLOOKUP(C8,'Plan comptable'!$B$2:$C$118,2),"") -> Contrepartie | E8: 2175 | F8: =IF(E8>0,VLOOKUP(E8,'Plan comptable'!$B$2:$C$118,2),"") -> Dettes LPP | G8: Solde
D9: =IF(C9>0,VLOOKUP(C9,'Plan comptable'!$B$2:$C$118,2),"") ->  | F9: =IF(E9>0,VLOOKUP(E9,'Plan comptable'!$B$2:$C$118,2),"") -> 
B10: 1 | D10: =IF(C10>0,VLOOKUP(C10,'Plan comptable'!$B$2:$C$118,2),"") ->  | F10: =IF(E10>0,VLOOKUP(E10,'Plan comptable'!$B$2:$C$118,2),"") -> 
D11: =IF(C11>0,VLOOKUP(C11,'Plan comptable'!$B$2:$C$118,2),"") ->  | F11: =IF(E11>0,VLOOKUP(E11,'Plan comptable'!$B$2:$C$118,2),"") -> 
D12: =IF(C12>0,VLOOKUP(C12,'Plan comptable'!$B$2:$C$118,2),"") ->  | F12: =IF(E12>0,VLOOKUP(E12,'Plan comptable'!$B$2:$C$118,2),"") -> 
D13: =IF(C13>0,VLOOKUP(C13,'Plan comptable'!$B$2:$C$118,2),"") ->  | F13: =IF(E13>0,VLOOKUP(E13,'Plan comptable'!$B$2:$C$118,2),"") -> 
D14: =IF(C14>0,VLOOKUP(C14,'Plan comptable'!$B$2:$C$118,2),"") ->  | F14: =IF(E14>0,VLOOKUP(E14,'Plan comptable'!$B$2:$C$118,2),"") -> 
D15: =IF(C15>0,VLOOKUP(C15,'Plan comptable'!$B$2:$C$118,2),"") ->  | F15: =IF(E15>0,VLOOKUP(E15,'Plan comptable'!$B$2:$C$118,2),"") -> 
D16: =IF(C16>0,VLOOKUP(C16,'Plan comptable'!$B$2:$C$118,2),"") ->  | F16: =IF(E16>0,VLOOKUP(E16,'Plan comptable'!$B$2:$C$118,2),"") -> 
D17: =IF(C17>0,VLOOKUP(C17,'Plan comptable'!$B$2:$C$118,2),"") ->  | F17: =IF(E17>0,VLOOKUP(E17,'Plan comptable'!$B$2:$C$118,2),"") -> 
D18: =IF(C18>0,VLOOKUP(C18,'Plan comptable'!$B$2:$C$118,2),"") ->  | F18: =IF(E18>0,VLOOKUP(E18,'Plan comptable'!$B$2:$C$118,2),"") -> 
D19: =IF(C19>0,VLOOKUP(C19,'Plan comptable'!$B$2:$C$118,2),"") ->  | F19: =IF(E19>0,VLOOKUP(E19,'Plan comptable'!$B$2:$C$118,2),"") -> 
D20: =IF(C20>0,VLOOKUP(C20,'Plan comptable'!$B$2:$C$118,2),"") ->  | F20: =IF(E20>0,VLOOKUP(E20,'Plan comptable'!$B$2:$C$118,2),"") -> 
D21: =IF(C21>0,VLOOKUP(C21,'Plan comptable'!$B$2:$C$118,2),"") ->  | F21: =IF(E21>0,VLOOKUP(E21,'Plan comptable'!$B$2:$C$118,2),"") -> 
D22: =IF(C22>0,VLOOKUP(C22,'Plan comptable'!$B$2:$C$118,2),"") ->  | F22: =IF(E22>0,VLOOKUP(E22,'Plan comptable'!$B$2:$C$118,2),"") -> 
D23: =IF(C23>0,VLOOKUP(C23,'Plan comptable'!$B$2:$C$118,2),"") ->  | F23: =IF(E23>0,VLOOKUP(E23,'Plan comptable'!$B$2:$C$118,2),"") -> 
D24: =IF(C24>0,VLOOKUP(C24,'Plan comptable'!$B$2:$C$118,2),"") ->  | F24: =IF(E24>0,VLOOKUP(E24,'Plan comptable'!$B$2:$C$118,2),"") -> 
D25: =IF(C25>0,VLOOKUP(C25,'Plan comptable'!$B$2:$C$118,2),"") ->  | F25: =IF(E25>0,VLOOKUP(E25,'Plan comptable'!$B$2:$C$118,2),"") -> 
D26: =IF(C26>0,VLOOKUP(C26,'Plan comptable'!$B$2:$C$118,2),"") ->  | F26: =IF(E26>0,VLOOKUP(E26,'Plan comptable'!$B$2:$C$118,2),"") -> 
D27: =IF(C27>0,VLOOKUP(C27,'Plan comptable'!$B$2:$C$118,2),"") ->  | F27: =IF(E27>0,VLOOKUP(E27,'Plan comptable'!$B$2:$C$118,2),"") -> 
D28: =IF(C28>0,VLOOKUP(C28,'Plan comptable'!$B$2:$C$118,2),"") ->  | F28: =IF(E28>0,VLOOKUP(E28,'Plan comptable'!$B$2:$C$118,2),"") -> 
D29: =IF(C29>0,VLOOKUP(C29,'Plan comptable'!$B$2:$C$118,2),"") ->  | F29: =IF(E29>0,VLOOKUP(E29,'Plan comptable'!$B$2:$C$118,2),"") -> 
D30: =IF(C30>0,VLOOKUP(C30,'Plan comptable'!$B$2:$C$118,2),"") ->  | F30: =IF(E30>0,VLOOKUP(E30,'Plan comptable'!$B$2:$C$118,2),"") -> 
D31: =IF(C31>0,VLOOKUP(C31,'Plan comptable'!$B$2:$C$118,2),"") ->  | F31: =IF(E31>0,VLOOKUP(E31,'Plan comptable'!$B$2:$C$118,2),"") -> 
D32: =IF(C32>0,VLOOKUP(C32,'Plan comptable'!$B$2:$C$118,2),"") ->  | F32: =IF(E32>0,VLOOKUP(E32,'Plan comptable'!$B$2:$C$118,2),"") -> 
D33: =IF(C33>0,VLOOKUP(C33,'Plan comptable'!$B$2:$C$118,2),"") ->  | F33: =IF(E33>0,VLOOKUP(E33,'Plan comptable'!$B$2:$C$118,2),"") -> 
D34: =IF(C34>0,VLOOKUP(C34,'Plan comptable'!$B$2:$C$118,2),"") ->  | F34: =IF(E34>0,VLOOKUP(E34,'Plan comptable'!$B$2:$C$118,2),"") -> 
D35: =IF(C35>0,VLOOKUP(C35,'Plan comptable'!$B$2:$C$118,2),"") ->  | F35: =IF(E35>0,VLOOKUP(E35,'Plan comptable'!$B$2:$C$118,2),"") -> 
D36: =IF(C36>0,VLOOKUP(C36,'Plan comptable'!$B$2:$C$118,2),"") ->  | F36: =IF(E36>0,VLOOKUP(E36,'Plan comptable'!$B$2:$C$118,2),"") -> 
D37: =IF(C37>0,VLOOKUP(C37,'Plan comptable'!$B$2:$C$118,2),"") ->  | F37: =IF(E37>0,VLOOKUP(E37,'Plan comptable'!$B$2:$C$118,2),"") -> 
D38: =IF(C38>0,VLOOKUP(C38,'Plan comptable'!$B$2:$C$118,2),"") ->  | F38: =IF(E38>0,VLOOKUP(E38,'Plan comptable'!$B$2:$C$118,2),"") -> 
D39: =IF(C39>0,VLOOKUP(C39,'Plan comptable'!$B$2:$C$118,2),"") ->  | F39: =IF(E39>0,VLOOKUP(E39,'Plan comptable'!$B$2:$C$118,2),"") -> 
D40: =IF(C40>0,VLOOKUP(C40,'Plan comptable'!$B$2:$C$118,2),"") ->  | F40: =IF(E40>0,VLOOKUP(E40,'Plan comptable'!$B$2:$C$118,2),"") -> 
D41: =IF(C41>0,VLOOKUP(C41,'Plan comptable'!$B$2:$C$118,2),"") ->  | F41: =IF(E41>0,VLOOKUP(E41,'Plan comptable'!$B$2:$C$118,2),"") -> 
D42: =IF(C42>0,VLOOKUP(C42,'Plan comptable'!$B$2:$C$118,2),"") ->  | F42: =IF(E42>0,VLOOKUP(E42,'Plan comptable'!$B$2:$C$118,2),"") -> 
D43: =IF(C43>0,VLOOKUP(C43,'Plan comptable'!$B$2:$C$118,2),"") ->  | F43: =IF(E43>0,VLOOKUP(E43,'Plan comptable'!$B$2:$C$118,2),"") -> 
D44: =IF(C44>0,VLOOKUP(C44,'Plan comptable'!$B$2:$C$118,2),"") ->  | F44: =IF(E44>0,VLOOKUP(E44,'Plan comptable'!$B$2:$C$118,2),"") -> 
D45: =IF(C45>0,VLOOKUP(C45,'Plan comptable'!$B$2:$C$118,2),"") ->  | F45: =IF(E45>0,VLOOKUP(E45,'Plan comptable'!$B$2:$C$118,2),"") -> 
D46: =IF(C46>0,VLOOKUP(C46,'Plan comptable'!$B$2:$C$118,2),"") ->  | F46: =IF(E46>0,VLOOKUP(E46,'Plan comptable'!$B$2:$C$118,2),"") -> 
D47: =IF(C47>0,VLOOKUP(C47,'Plan comptable'!$B$2:$C$118,2),"") ->  | F47: =IF(E47>0,VLOOKUP(E47,'Plan comptable'!$B$2:$C$118,2),"") -> 
D48: =IF(C48>0,VLOOKUP(C48,'Plan comptable'!$B$2:$C$118,2),"") ->  | F48: =IF(E48>0,VLOOKUP(E48,'Plan comptable'!$B$2:$C$118,2),"") -> 
D49: =IF(C49>0,VLOOKUP(C49,'Plan comptable'!$B$2:$C$118,2),"") ->  | F49: =IF(E49>0,VLOOKUP(E49,'Plan comptable'!$B$2:$C$118,2),"") -> 
D50: =IF(C50>0,VLOOKUP(C50,'Plan comptable'!$B$2:$C$118,2),"") ->  | F50: =IF(E50>0,VLOOKUP(E50,'Plan comptable'!$B$2:$C$118,2),"") -> 
D51: =IF(C51>0,VLOOKUP(C51,'Plan comptable'!$B$2:$C$118,2),"") ->  | F51: =IF(E51>0,VLOOKUP(E51,'Plan comptable'!$B$2:$C$118,2),"") -> 
D52: =IF(C52>0,VLOOKUP(C52,'Plan comptable'!$B$2:$C$118,2),"") ->  | F52: =IF(E52>0,VLOOKUP(E52,'Plan comptable'!$B$2:$C$118,2),"") -> 
D53: =IF(C53>0,VLOOKUP(C53,'Plan comptable'!$B$2:$C$118,2),"") ->  | F53: =IF(E53>0,VLOOKUP(E53,'Plan comptable'!$B$2:$C$118,2),"") -> 
D54: =IF(C54>0,VLOOKUP(C54,'Plan comptable'!$B$2:$C$118,2),"") ->  | F54: =IF(E54>0,VLOOKUP(E54,'Plan comptable'!$B$2:$C$118,2),"") -> 
D55: =IF(C55>0,VLOOKUP(C55,'Plan comptable'!$B$2:$C$118,2),"") ->  | F55: =IF(E55>0,VLOOKUP(E55,'Plan comptable'!$B$2:$C$118,2),"") -> 
D56: =IF(C56>0,VLOOKUP(C56,'Plan comptable'!$B$2:$C$118,2),"") ->  | F56: =IF(E56>0,VLOOKUP(E56,'Plan comptable'!$B$2:$C$118,2),"") -> 
D57: =IF(C57>0,VLOOKUP(C57,'Plan comptable'!$B$2:$C$118,2),"") ->  | F57: =IF(E57>0,VLOOKUP(E57,'Plan comptable'!$B$2:$C$118,2),"") -> 
D58: =IF(C58>0,VLOOKUP(C58,'Plan comptable'!$B$2:$C$118,2),"") ->  | F58: =IF(E58>0,VLOOKUP(E58,'Plan comptable'!$B$2:$C$118,2),"") -> 
D59: =IF(C59>0,VLOOKUP(C59,'Plan comptable'!$B$2:$C$118,2),"") ->  | F59: =IF(E59>0,VLOOKUP(E59,'Plan comptable'!$B$2:$C$118,2),"") -> 
D60: =IF(C60>0,VLOOKUP(C60,'Plan comptable'!$B$2:$C$118,2),"") ->  | F60: =IF(E60>0,VLOOKUP(E60,'Plan comptable'!$B$2:$C$118,2),"") -> 
D61: =IF(C61>0,VLOOKUP(C61,'Plan comptable'!$B$2:$C$118,2),"") ->  | F61: =IF(E61>0,VLOOKUP(E61,'Plan comptable'!$B$2:$C$118,2),"") -> 
D62: =IF(C62>0,VLOOKUP(C62,'Plan comptable'!$B$2:$C$118,2),"") ->  | F62: =IF(E62>0,VLOOKUP(E62,'Plan comptable'!$B$2:$C$118,2),"") -> 
D63: =IF(C63>0,VLOOKUP(C63,'Plan comptable'!$B$2:$C$118,2),"") ->  | F63: =IF(E63>0,VLOOKUP(E63,'Plan comptable'!$B$2:$C$118,2),"") -> 
D64: =IF(C64>0,VLOOKUP(C64,'Plan comptable'!$B$2:$C$118,2),"") ->  | F64: =IF(E64>0,VLOOKUP(E64,'Plan comptable'!$B$2:$C$118,2),"") -> 
D65: =IF(C65>0,VLOOKUP(C65,'Plan comptable'!$B$2:$C$118,2),"") ->  | F65: =IF(E65>0,VLOOKUP(E65,'Plan comptable'!$B$2:$C$118,2),"") -> 
D66: =IF(C66>0,VLOOKUP(C66,'Plan comptable'!$B$2:$C$118,2),"") ->  | F66: =IF(E66>0,VLOOKUP(E66,'Plan comptable'!$B$2:$C$118,2),"") -> 
D67: =IF(C67>0,VLOOKUP(C67,'Plan comptable'!$B$2:$C$118,2),"") ->  | F67: =IF(E67>0,VLOOKUP(E67,'Plan comptable'!$B$2:$C$118,2),"") -> 

Sheet Accès au corrigé
B3: Accès au corrigé de l'exercice

Sheet Corrigé A et B
B1: FICHE DE SALAIRE | G1: mois : | I1: Corrigé fiche A
B4: Nom : | D4: ='Données générales '!C20 -> Dupont Jean
B5: Avs no | I5: AVS o/n | J5: =LEFT('Données générales '!C28,1) -> n
B6: Enfants < 16 ans | D6: ='Données générales '!C23 -> 0 | E6: 16 - 25 ans | G6: ='Données générales '!C24 -> 0 | I6: LPP o/n | J6: =LEFT('Données générales '!C29,1) -> n
C9: Décompte
C10: Salaire déterminant AVS | L10: ='Données générales '!C22 -> 680.00
C12: Allocations enfants | L12: =(D6*'Données générales '!$E$11) + (G6 * 'Données générales '!$G$11) -> 0.00
C14: Salaire brut | L14: =L10+L12 -> 680.00
C16: Charges sociales | E16: totales | G16: à charge | I16: s/CHF
C17: ./. Caisse de pens. | E17: ='Données générales '!$E$5+'Données générales '!$G$5 -> 18 | F17: % | G17: ='Données générales '!$G$5 -> 8 | H17: % | I17: =IF(L10<'Données générales '!$G$14,0,IF(AND(L10>'Données générales '!$G$14-0.1,L10<'Données générales '!$G$15),'Données générales '!$I$14,IF(L10>'Données générales '!$G$16,'Données générales '!$I$16,IF(L10>'Données générales '!$G$15-0.1,L10-'Données générales '!$E$15)))) -> 0.00 | K17: =IF(J6="o",I17*G17/100,0) -> 0.00
C18: ./. Ass acc non prof | E18: ='Données générales '!$E$6+'Données générales '!$G$6 -> 1.86 | F18: % | G18: ='Données générales '!$G$6 -> 1.46 | H18: % | I18: =L10 -> 680.00 | K18: =I18*G18/100 -> 9.93 | L18: =SUM(K17:K21) -> 9.93 | N18: Dette AVS
C19: ='Données générales '!$K$10 -> ./. AVS/AI/APG/PCfam | E19: ='Données générales '!$K$5+'Données générales '!$K$6 -> 10.6 | F19: % | G19: ='Données générales '!$K$6 -> 5.21 | H19: % | I19: =IF(J5="o",L10,0) -> 0.00 | J19: =N19 -> 0.00 | K19: =IF($J$5="o",I19*G19/100,0) -> 0.00 | N19: =SUM(K19:K21) -> 0.00
C20: ./. AC | E20: ='Données générales '!$E$8+'Données générales '!$G$8 -> 2.2 | F20: % | G20: ='Données générales '!$G$8 -> 1.1 | H20: % | I20: =IF(I19=0,0,N20) -> 0.00 | K20: =IF($J$5="o",I20*G20/100,0) -> 0.00 | N20: =IF(I19>'Données générales '!$I$8,'Données générales '!$I$8,'Corrigé A et B'!I19) -> 0
C21: ./. AC solidarité | E21: ='Données générales '!$E$9+'Données générales '!$G$9 -> 1 | F21: % | G21: ='Données générales '!$G$9 -> 0.5 | H21: % | I21: =IF(I20='Données générales '!$I$8,'Corrigé A et B'!N21,0) -> 0.00 | K21: =IF($J$5="o",I21*G21/100,0) -> 0.00 | N21: =IF(I19>'Données générales '!$I$9,'Données générales '!$I$9 - I20,'Corrigé A et B'!I19-'Données générales '!$I$8) -> -10500
C22: Autres déductions | K22: - | L22: ='Données générales '!C27 -> 0.00
C23: Bonifications | E23: Assurance maladie | K23: + | L23: ='Données générales '!C25 -> 150.00 | N23: part patron
C25: Frais de déplacements | E25: Nb de km | G25: Tarif | I25: Forfait | N25: =I19*(E19-G19)/100 -> 0
E26: ='Données générales '!C26 -> 0.00 | F26: km | G26: ='Données générales '!$C$31 -> 0.80 | H26: fr. | J26: fr. | K26: + | L26: =(E26*G26)+I26 -> 0.00 | N26: =I20*(E20-G20)/100 -> 0
C27: Arrondi au fr. sup. | L27: =L28-(L14-L18-L22+L23+L26) -> 0.93 | N27: =I21*(E21-G21)/100 -> 0
C28: Montant net | K28: Net : | L28: =CEILING((L14-L18-L22+L23+L26),1) -> 821.00 | N28: =SUM(N25:N27) -> 0
B33: FICHE DE SALAIRE | G33: mois : | I33: Corrigé fiche B
B36: Nom : | D36: ='Données générales '!E20 -> Cornaz Romain
B37: Avs no | I37: AVS o/n | J37: =LEFT('Données générales '!E28,1) -> o
B38: Enfants < 16 ans | D38: ='Données générales '!E23 -> 1 | E38: 16 - 25 ans | G38: ='Données générales '!E24 -> 0 | I38: LPP o/n | J38: =LEFT('Données générales '!E29,1) -> o
C41: Décompte
C42: Salaire déterminant AVS | L42: ='Données générales '!E22 -> 4,900.00
C44: Allocations enfants | L44: =(D38*'Données générales '!$E$11) + (G38 * 'Données générales '!$G$11) -> 200.00
C46: Salaire brut | L46: =L42+L44 -> 5,100.00
C48: Charges sociales | E48: totales | G48: à charge | I48: s/CHF
C49: ./. Caisse de pens. | E49: ='Données générales '!$E$5+'Données générales '!$G$5 -> 18 | F49: % | G49: ='Données générales '!$G$5 -> 8 | H49: % | I49: =IF(L42<'Données générales '!$G$14,0,IF(AND(L42>'Données générales '!$G$14-0.1,L42<'Données générales '!$G$15),'Données générales '!$I$14,IF(L42>'Données générales '!$G$16,'Données générales '!$I$16,IF(L42>'Données générales '!$G$15-0.1,L42-'Données générales '!$E$15)))) -> 2,852.50 | K49: =IF(J38="o",I49*G49/100,0) -> 228.20
C50: ./. Ass acc non prof | E50: ='Données générales '!$E$6+'Données générales '!$G$6 -> 1.86 | F50: % | G50: ='Données générales '!$G$6 -> 1.46 | H50: % | I50: =L42 -> 4,900.00 | K50: =I50*G50/100 -> 71.54 | L50: =SUM(K49:K53) -> 608.93 | N50: Dette AVS
C51: ='Données générales '!$K$10 -> ./. AVS/AI/APG/PCfam | E51: ='Données générales '!$K$5+'Données générales '!$K$6 -> 10.6 | F51: % | G51: ='Données générales '!$K$6 -> 5.21 | H51: % | I51: =IF(J37="o",L42,0) -> 4,900.00 | J51: =N51 -> 309.19 | K51: =IF(J37="o",I51*G51/100,0) -> 255.29 | N51: =SUM(K51:K53) -> 309.19
C52: ./. AC | E52: ='Données générales '!$E$8+'Données générales '!$G$8 -> 2.2 | F52: % | G52: ='Données générales '!$G$8 -> 1.1 | H52: % | I52: =IF(I51=0,0,N52) -> 4,900.00 | K52: =IF(J37="o",I52*G52/100,0) -> 53.90 | N52: =IF(I51>'Données générales '!$I$8,'Données générales '!$I$8,'Corrigé A et B'!I51) -> 4900
C53: ./. AC solidarité | E53: ='Données générales '!$E$9+'Données générales '!$G$9 -> 1 | F53: % | G53: ='Données générales '!$G$9 -> 0.5 | H53: % | I53: =IF(I52='Données générales '!$I$8,'Corrigé A et B'!N53,0) -> 0.00 | K53: =IF(J37="o",I53*G53/100,0) -> 0.00 | N53: =IF(I51>'Données générales '!$I$9,'Données générales '!$I$9 - I52,'Corrigé A et B'!I51-'Données générales '!$I$8) -> -5600
C54: Autres déductions | K54: - | L54: ='Données générales '!E27 -> 500.00
C55: Bonifications | E55: Assurance maladie | K55: + | L55: ='Données générales '!E25 -> 0.00 | N55: part patron
C57: Frais de déplacements | E57: Nb de km | G57: Tarif | I57: Forfait | N57: =I51*(E51-G51)/100 -> 264.11
E58: ='Données générales '!E26 -> 0.00 | F58: km | G58: ='Données générales '!$C$31 -> 0.80 | H58: fr. | J58: fr. | K58: + | L58: =(E58*G58)+I58 -> 0.00 | N58: =I52*(E52-G52)/100 -> 53.9
C59: Arrondi au fr. sup. | L59: =L60-(L46-L50-L54+L55+L58) -> 0.93 | N59: =I53*(E53-G53)/100 -> 0
C60: Montant net | K60: Net : | L60: =CEILING((L46-L50-L54+L55+L58),1) -> 3,992.00 | N60: =SUM(N57:N59) -> 318.01

Sheet Corrigé C et D
B1: FICHE DE SALAIRE | G1: mois : | I1: Corrigé fiche C
B4: Nom : | D4: ='Données générales '!G20 -> Bonzon Nathalie
B5: Avs no | I5: AVS o/n | J5: =LEFT('Données générales '!G28,1) -> o
B6: Enfants < 16 ans | D6: ='Données générales '!G23 -> 2 | E6: 16 - 25 ans | G6: ='Données générales '!G24 -> 1 | I6: LPP o/n | J6: =LEFT('Données générales '!G29,1) -> o
C9: Décompte
C10: Salaire déterminant AVS | L10: ='Données générales '!G22 -> 7,200.00
C12: Allocations enfants | L12: =(D6*'Données générales '!$E$11) + (G6 * 'Données générales '!$G$11) -> 700.00
C14: Salaire brut | L14: =L10+L12 -> 7,900.00
C16: Charges sociales | E16: totales | G16: à charge | I16: s/CHF
C17: ./. Caisse de pens. | E17: ='Données générales '!$E$5+'Données générales '!$G$5 -> 18 | F17: % | G17: ='Données générales '!$G$5 -> 8 | H17: % | I17: =IF(L10<'Données générales '!$G$14,0,IF(AND(L10>'Données générales '!$G$14-0.1,L10<'Données générales '!$G$15),'Données générales '!$I$14,IF(L10>'Données générales '!$G$16,'Données générales '!$I$16,IF(L10>'Données générales '!$G$15-0.1,L10-'Données générales '!$E$15)))) -> 4,972.50 | K17: =IF(J6="o",I17*G17/100,0) -> 397.80
C18: ./. Ass acc non prof | E18: ='Données générales '!$E$6+'Données générales '!$G$6 -> 1.86 | F18: % | G18: ='Données générales '!$G$6 -> 1.46 | H18: % | I18: =L10 -> 7,200.00 | K18: =I18*G18/100 -> 105.12 | L18: =SUM(K17:K21) -> 957.24 | N18: Dette AVS
C19: ='Données générales '!$K$10 -> ./. AVS/AI/APG/PCfam | E19: ='Données générales '!$K$5+'Données générales '!$K$6 -> 10.6 | F19: % | G19: ='Données générales '!$K$6 -> 5.21 | H19: % | I19: =IF(J5="o",L10,0) -> 7,200.00 | J19: =N19 -> 454.32 | K19: =IF(J5="o",I19*G19/100,0) -> 375.12 | N19: =SUM(K19:K21) -> 454.32
C20: ./. AC | E20: ='Données générales '!$E$8+'Données générales '!$G$8 -> 2.2 | F20: % | G20: ='Données générales '!$G$8 -> 1.1 | H20: % | I20: =IF(I19=0,0,N20) -> 7,200.00 | K20: =IF($J$5="o",I20*G20/100,0) -> 79.20 | N20: =IF(I19>'Données générales '!$I$8,'Données générales '!$I$8,I19) -> 7200
C21: ./. AC solidarité | E21: ='Données générales '!$E$9+'Données générales '!$G$9 -> 1 | F21: % | G21: ='Données générales '!$G$9 -> 0.5 | H21: % | I21: =IF(I20='Données générales '!$I$8,N21,0) -> 0.00 | K21: =IF($J$5="o",I21*G21/100,0) -> 0.00 | N21: =IF(I19>'Données générales '!$I$9,'Données générales '!$I$9 - I20,I19-'Données générales '!$I$8) -> -3300
C22: Autres déductions | K22: - | L22: ='Données générales '!G27 -> 0.00
C23: Bonifications | E23: Assurance maladie | K23: + | L23: ='Données générales '!G25 -> 0.00 | N23: part patron
C25: Frais de déplacements | E25: Nb de km | G25: Tarif | I25: Forfait | N25: =I19*(E19-G19)/100 -> 388.08
E26: ='Données générales '!G26 -> 525.00 | F26: km | G26: ='Données générales '!$C$31 -> 0.80 | H26: fr. | J26: fr. | K26: + | L26: =(E26*G26)+I26 -> 420.00 | N26: =I20*(E20-G20)/100 -> 79.2
C27: Arrondi au fr. sup. | L27: =L28-(L14-L18-L22+L23+L26) -> 0.24 | N27: =I21*(E21-G21)/100 -> 0
C28: Montant net | K28: Net : | L28: =CEILING((L14-L18-L22+L23+L26),1) -> 7,363.00 | N28: =SUM(N25:N27) -> 467.28
B33: FICHE DE SALAIRE | G33: mois : | I33: Corrigé fiche D
B36: Nom : | D36: ='Données générales '!I20 -> Dzanovic Damira
B37: Avs no | I37: AVS o/n | J37: =LEFT('Données générales '!I28,1) -> o
B38: Enfants < 16 ans | D38: ='Données générales '!I23 -> 0 | E38: 16 - 25 ans | G38: ='Données générales '!I24 -> 2 | I38: LPP o/n | J38: =LEFT('Données générales '!I29,1) -> o
C41: Décompte
C42: Salaire déterminant AVS | L42: ='Données générales '!I22 -> 12,700.00
C44: Allocations enfants | L44: =(D38*'Données générales '!$E$11) + (G38 * 'Données générales '!$G$11) -> 600.00
C46: Salaire brut | L46: =L42+L44 -> 13,300.00
C48: Charges sociales | E48: totales | G48: à charge | I48: s/CHF
C49: ./. Caisse de pens. | E49: ='Données générales '!$E$5+'Données générales '!$G$5 -> 18 | F49: % | G49: ='Données générales '!$G$5 -> 8 | H49: % | I49: =IF(L42<'Données générales '!$G$14,0,IF(AND(L42>'Données générales '!$G$14-0.1,L42<'Données générales '!$G$15),'Données générales '!$I$14,IF(L42>'Données générales '!$G$16,'Données générales '!$I$16,IF(L42>'Données générales '!$G$15-0.1,L42-'Données générales '!$E$15)))) -> 4,972.50 | K49: =IF(J38="o",I49*G49/100,0) -> 397.80
C50: ./. Ass acc non prof | E50: ='Données générales '!$E$6+'Données générales '!$G$6 -> 1.86 | F50: % | G50: ='Données générales '!$G$6 -> 1.46 | H50: % | I50: =L42 -> 12,700.00 | K50: =I50*G50/100 -> 185.42 | L50: =SUM(K49:K53) -> 1,371.39 | N50: Dette AVS
C51: ='Données générales '!$K$10 -> ./. AVS/AI/APG/PCfam | E51: ='Données générales '!$K$5+'Données générales '!$K$6 -> 10.6 | F51: % | G51: ='Données générales '!$K$6 -> 5.21 | H51: % | I51: =IF(J37="o",L42,0) -> 12,700.00 | J51: =N51 -> 788.17 | K51: =IF(J37="o",I51*G51/100,0) -> 661.67 | N51: =SUM(K51:K53) -> 788.17
C52: ./. AC | E52: ='Données générales '!$E$8+'Données générales '!$G$8 -> 2.2 | F52: % | G52: ='Données générales '!$G$8 -> 1.1 | H52: % | I52: =IF(I51=0,0,N52) -> 10,500.00 | K52: =IF(J37="o",I52*G52/100,0) -> 115.50 | N52: =IF(I51>'Données générales '!$I$8,'Données générales '!$I$8,I51) -> 10500
C53: ./. AC solidarité | E53: ='Données générales '!$E$9+'Données générales '!$G$9 -> 1 | F53: % | G53: ='Données générales '!$G$9 -> 0.5 | H53: % | I53: =IF(I52='Données générales '!$I$8,N53,0) -> 2,200.00 | K53: =IF(J37="o",I53*G53/100,0) -> 11.00 | N53: =IF(I51>'Données générales '!$I$9,'Données générales '!$I$9 - I52,I51-'Données générales '!$I$8) -> 2200
C54: Autres déductions | K54: - | L54: ='Données générales '!I27 -> 0.00
C55: Bonifications | E55: Assurance maladie | K55: + | L55: ='Données générales '!I25 -> 0.00 | N55: part patron
C57: Frais de déplacements | E57: Nb de km | G57: Tarif | I57: Forfait | N57: =I51*(E51-G51)/100 -> 684.53
E58: ='Données générales '!I26 -> 650.00 | F58: km | G58: ='Données générales '!$C$31 -> 0.80 | H58: fr. | J58: fr. | K58: + | L58: =(E58*G58)+I58 -> 520.00 | N58: =I52*(E52-G52)/100 -> 115.5
C59: Arrondi au fr. sup. | L59: =L60-(L46-L50-L54+L55+L58) -> 0.39 | N59: =I53*(E53-G53)/100 -> 11
A60: 125 | C60: Montant net | K60: Net : | L60: =CEILING((L46-L50-L54+L55+L58),1) -> 12,449.00 | N60: =SUM(N57:N59) -> 811.03
N72: somme pat
C73: Total cotisant AVS | E73: ='Corrigé A et B'!I19+'Corrigé A et B'!I51+'Corrigé C et D '!I19+'Corrigé C et D '!I51 -> 24,800.00 | N73: =N60+N28+'Corrigé A et B'!N60+'Corrigé A et B'!N28 -> 1596.32
C74: Total cotisant AC1 | E74: =SUM('Corrigé A et B'!I20+'Corrigé A et B'!I52+'Corrigé C et D '!I20+'Corrigé C et D '!I52) -> 22,600.00
C75: Total cotisant AC2 | E75: ='Corrigé A et B'!I21+'Corrigé A et B'!I53+'Corrigé C et D '!I21+'Corrigé C et D '!I53 -> 2,200.00
C76: Total cotisant LPP | E76: ='Corrigé A et B'!I17+'Corrigé A et B'!I49+'Corrigé C et D '!I17+'Corrigé C et D '!I49 -> 12,797.50
C77: Total allocations versées | E77: ='Corrigé A et B'!L12+'Corrigé A et B'!L44+'Corrigé C et D '!L44+'Corrigé C et D '!L12 -> 1,500.00

Sheet Solutions
I1: FALSE
B3: Corrigé exercice sur les salaires | L3: =101-COUNTIF(L6:L117,"") -> 43
B4: No | C4: Compte à | G4: Libellé | H4: Sommes à
C5: débiter | E5: créditer | H5: débiter | I5: créditer
B6: Ouv | C6: 1010 | D6: =IF(C6>0,VLOOKUP(C6,'Plan comptable'!$B$2:$C$118,2),"") -> Poste | E6: 9999 | F6: =IF(E6>0,VLOOKUP(E6,'Plan comptable'!$B$2:$C$118,2),"") -> Contrepartie | G6: Solde à nouveau | H6: ='Exercice à imprimer'!S5 -> 60,000.00 | J6: =IF($L6="","",IF(C6="","",LOOKUP(C6,Miniplan,'Plan comptable'!$A$2:$A$73))) -> 2 | K6: =IF($L6="","",IF(E6="","",LOOKUP(E6,Miniplan,'Plan comptable'!$A$2:$A$73))) -> 63 | L6: =IF(SUM(H6:I6)=0,"",IF(H6="",I6,H6)) -> 60000 | M6: =L6 -> 60000
C7: 9999 | D7: =IF(C7>0,VLOOKUP(C7,'Plan comptable'!$B$2:$C$118,2),"") -> Contrepartie | E7: 2170 | F7: =IF(E7>0,VLOOKUP(E7,'Plan comptable'!$B$2:$C$118,2),"") -> Dettes AVS / AC | G7: Solde à nouveau | I7: ='Exercice à imprimer'!S6*-1 -> 8,000.00 | J7: =IF($L7="","",IF(C7="","",LOOKUP(C7,Miniplan,'Plan comptable'!$A$2:$A$73))) -> 63 | K7: =IF($L7="","",IF(E7="","",LOOKUP(E7,Miniplan,'Plan comptable'!$A$2:$A$73))) -> 20 | L7: 8000 | M7: 8000
C8: 9999 | D8: =IF(C8>0,VLOOKUP(C8,'Plan comptable'!$B$2:$C$118,2),"") -> Contrepartie | E8: 2175 | F8: =IF(E8>0,VLOOKUP(E8,'Plan comptable'!$B$2:$C$118,2),"") -> Dettes LPP | G8: Solde à nouveau | I8: ='Exercice à imprimer'!S7*-1 -> 11,400.00 | J8: =IF($L8="","",IF(C8="","",LOOKUP(C8,Miniplan,'Plan comptable'!$A$2:$A$73))) -> 63 | K8: =IF($L8="","",IF(E8="","",LOOKUP(E8,Miniplan,'Plan comptable'!$A$2:$A$73))) -> 21 | L8: 11400 | M8: 11400
D9: =IF(C9>0,VLOOKUP(C9,'Plan comptable'!$B$2:$C$118,2),"") ->  | F9: =IF(E9>0,VLOOKUP(E9,'Plan comptable'!$B$2:$C$118,2),"") ->  | I9: 0.10 | J9: =IF($L9="","",IF(C9="","",LOOKUP(C9,Miniplan,'Plan comptable'!$A$2:$A$73))) ->  | K9: =IF($L9="","",IF(E9="","",LOOKUP(E9,Miniplan,'Plan comptable'!$A$2:$A$73))) ->  | L9: 0.1 | M9: 0.1
B10: 1 | C10: 5270 | D10: =IF(C10>0,VLOOKUP(C10,'Plan comptable'!$B$2:$C$118,2),"") -> Charges sociales | E10: 1010 | F10: =IF(E10>0,VLOOKUP(E10,'Plan comptable'!$B$2:$C$118,2),"") -> Poste | G10: Prime AA | H10: ='Exercice à imprimer'!L38*'Données générales '!D6 -> 2,843.57 | I10: =H10 -> 2,843.57 | J10: =IF($L10="","",IF(C10="","",LOOKUP(C10,Miniplan,'Plan comptable'!$A$2:$A$73))) -> 38 | K10: =IF($L10="","",IF(E10="","",LOOKUP(E10,Miniplan,'Plan comptable'!$A$2:$A$73))) -> 2 | L10: 2843.568 | M10: 2843.568
D11: =IF(C11>0,VLOOKUP(C11,'Plan comptable'!$B$2:$C$118,2),"") ->  | F11: =IF(E11>0,VLOOKUP(E11,'Plan comptable'!$B$2:$C$118,2),"") ->  | I11: 0.10 | J11: =IF($L11="","",IF(C11="","",LOOKUP(C11,Miniplan,'Plan comptable'!$A$2:$A$73))) ->  | K11: =IF($L11="","",IF(E11="","",LOOKUP(E11,Miniplan,'Plan comptable'!$A$2:$A$73))) ->  | L11: 0.1 | M11: 0.1
B12: 2A | C12: 5200 | D12: =IF(C12>0,VLOOKUP(C12,'Plan comptable'!$B$2:$C$118,2),"") -> Salaires | F12: =IF(E12>0,VLOOKUP(E12,'Plan comptable'!$B$2:$C$118,2),"") ->  | G12: ="Salaire brut " &'Données générales '!C20 -> Salaire brut Dupont Jean | H12: ='Corrigé A et B'!L10 -> 680.00 | J12: =IF($L12="","",IF(C12="","",LOOKUP(C12,Miniplan,'Plan comptable'!$A$2:$A$73))) -> 37 | K12: =IF($L12="","",IF(E12="","",LOOKUP(E12,Miniplan,'Plan comptable'!$A$2:$A$73))) ->  | L12: =IF(SUM(H12:I12)=0,"",IF(H12="",I12,H12)) -> 680 | M12: =L12 -> 680
C13: 2180 | D13: =IF(C13>0,VLOOKUP(C13,'Plan comptable'!$B$2:$C$118,2),"") -> Dettes Caisse AF | F13: =IF(E13>0,VLOOKUP(E13,'Plan comptable'!$B$2:$C$118,2),"") ->  | G13: + Allocations familiales A | H13: ='Corrigé A et B'!L12 -> 0.00 | J13: =IF($L13="","",IF(C13="","",LOOKUP(C13,Miniplan,'Plan comptable'!$A$2:$A$73))) ->  | K13: =IF($L13="","",IF(E13="","",LOOKUP(E13,Miniplan,'Plan comptable'!$A$2:$A$73))) ->  | L13: =IF(SUM(H13:I13)=0,"",IF(H13="",I13,H13)) ->  | M13: =L13 -> 
C14: 5270 | D14: =IF(C14>0,VLOOKUP(C14,'Plan comptable'!$B$2:$C$118,2),"") -> Charges sociales | F14: =IF(E14>0,VLOOKUP(E14,'Plan comptable'!$B$2:$C$118,2),"") ->  | G14: + Participation ass. maladie A | H14: ='Corrigé A et B'!L23 -> 150.00 | J14: =IF($L14="","",IF(C14="","",LOOKUP(C14,Miniplan,'Plan comptable'!$A$2:$A$73))) -> 38 | K14: =IF($L14="","",IF(E14="","",LOOKUP(E14,Miniplan,'Plan comptable'!$A$2:$A$73))) ->  | L14: 150 | M14: 150
C15: 6700 | D15: =IF(C15>0,VLOOKUP(C15,'Plan comptable'!$B$2:$C$118,2),"") -> ACE | F15: =IF(E15>0,VLOOKUP(E15,'Plan comptable'!$B$2:$C$118,2),"") ->  | G15: + Frais de déplacements A | H15: ='Corrigé A et B'!L26 -> 0.00 | J15: =IF($L15="","",IF(C15="","",LOOKUP(C15,Miniplan,'Plan comptable'!$A$2:$A$73))) ->  | K15: =IF($L15="","",IF(E15="","",LOOKUP(E15,Miniplan,'Plan comptable'!$A$2:$A$73))) -> 
C16: 5200 | D16: =IF(C16>0,VLOOKUP(C16,'Plan comptable'!$B$2:$C$118,2),"") -> Salaires | F16: =IF(E16>0,VLOOKUP(E16,'Plan comptable'!$B$2:$C$118,2),"") ->  | G16: + Arrondis | H16: ='Corrigé A et B'!L27 -> 0.93 | J16: =IF($L16="","",IF(C16="","",LOOKUP(C16,Miniplan,'Plan comptable'!$A$2:$A$73))) -> 37 | K16: =IF($L16="","",IF(E16="","",LOOKUP(E16,Miniplan,'Plan comptable'!$A$2:$A$73))) ->  | L16: 0.928 | M16: 0.928
D17: =IF(C17>0,VLOOKUP(C17,'Plan comptable'!$B$2:$C$118,2),"") ->  | E17: 2170 | F17: =IF(E17>0,VLOOKUP(E17,'Plan comptable'!$B$2:$C$118,2),"") -> Dettes AVS / AC | G17: - Retenue AVS / AC A | I17: ='Corrigé A et B'!N19 -> 0.00 | J17: =IF($L17="","",IF(C17="","",LOOKUP(C17,Miniplan,'Plan comptable'!$A$2:$A$73))) ->  | K17: =IF($L17="","",IF(E17="","",LOOKUP(E17,Miniplan,'Plan comptable'!$A$2:$A$73))) -> 
D18: =IF(C18>0,VLOOKUP(C18,'Plan comptable'!$B$2:$C$118,2),"") ->  | E18: 2175 | F18: =IF(E18>0,VLOOKUP(E18,'Plan comptable'!$B$2:$C$118,2),"") -> Dettes LPP | G18: - Retenue 2ème pilier A | I18: ='Corrigé A et B'!K17 -> 0.00 | J18: =IF($L18="","",IF(C18="","",LOOKUP(C18,Miniplan,'Plan comptable'!$A$2:$A$73))) ->  | K18: =IF($L18="","",IF(E18="","",LOOKUP(E18,Miniplan,'Plan comptable'!$A$2:$A$73))) -> 
D19: =IF(C19>0,VLOOKUP(C19,'Plan comptable'!$B$2:$C$118,2),"") ->  | E19: 5270 | F19: =IF(E19>0,VLOOKUP(E19,'Plan comptable'!$B$2:$C$118,2),"") -> Charges sociales | G19: - Retenue AANP A | I19: ='Corrigé A et B'!K18 -> 9.93 | J19: =IF($L19="","",IF(C19="","",LOOKUP(C19,Miniplan,'Plan comptable'!$A$2:$A$73))) ->  | K19: =IF($L19="","",IF(E19="","",LOOKUP(E19,Miniplan,'Plan comptable'!$A$2:$A$73))) -> 38 | L19: 9.928 | M19: 9.928
D20: =IF(C20>0,VLOOKUP(C20,'Plan comptable'!$B$2:$C$118,2),"") ->  | E20: 1110 | F20: =IF(E20>0,VLOOKUP(E20,'Plan comptable'!$B$2:$C$118,2),"") -> Autres créances | G20: - Avance de salaire A | I20: ='Corrigé A et B'!L22 -> 0.00 | J20: =IF($L20="","",IF(C20="","",LOOKUP(C20,Miniplan,'Plan comptable'!$A$2:$A$73))) ->  | K20: =IF($L20="","",IF(E20="","",LOOKUP(E20,Miniplan,'Plan comptable'!$A$2:$A$73))) -> 
D21: =IF(C21>0,VLOOKUP(C21,'Plan comptable'!$B$2:$C$118,2),"") ->  | E21: 1010 | F21: =IF(E21>0,VLOOKUP(E21,'Plan comptable'!$B$2:$C$118,2),"") -> Poste | G21: Salaire net versé A | I21: ='Corrigé A et B'!L28 -> 821.00 | J21: =IF($L21="","",IF(C21="","",LOOKUP(C21,Miniplan,'Plan comptable'!$A$2:$A$73))) ->  | K21: =IF($L21="","",IF(E21="","",LOOKUP(E21,Miniplan,'Plan comptable'!$A$2:$A$73))) -> 2 | L21: 821 | M21: 821
D22: =IF(C22>0,VLOOKUP(C22,'Plan comptable'!$B$2:$C$118,2),"") ->  | F22: =IF(E22>0,VLOOKUP(E22,'Plan comptable'!$B$2:$C$118,2),"") ->  | I22: 0.10 | J22: =IF($L22="","",IF(C22="","",LOOKUP(C22,Miniplan,'Plan comptable'!$A$2:$A$73))) ->  | K22: =IF($L22="","",IF(E22="","",LOOKUP(E22,Miniplan,'Plan comptable'!$A$2:$A$73))) ->  | L22: 0.1 | M22: 0.1
B23: 2B | C23: 5200 | D23: =IF(C23>0,VLOOKUP(C23,'Plan comptable'!$B$2:$C$118,2),"") -> Salaires | F23: =IF(E23>0,VLOOKUP(E23,'Plan comptable'!$B$2:$C$118,2),"") ->  | G23: ="Salaire brut " & 'Données générales '!E20 -> Salaire brut Cornaz Romain | H23: ='Corrigé A et B'!L42 -> 4,900.00 | J23: =IF($L23="","",IF(C23="","",LOOKUP(C23,Miniplan,'Plan comptable'!$A$2:$A$73))) -> 37 | K23: =IF($L23="","",IF(E23="","",LOOKUP(E23,Miniplan,'Plan comptable'!$A$2:$A$73))) ->  | L23: 4900 | M23: 4900
C24: 2180 | D24: =IF(C24>0,VLOOKUP(C24,'Plan comptable'!$B$2:$C$118,2),"") -> Dettes Caisse AF | F24: =IF(E24>0,VLOOKUP(E24,'Plan comptable'!$B$2:$C$118,2),"") ->  | G24: + Allocations familiales B | H24: ='Corrigé A et B'!L44 -> 200.00 | J24: =IF($L24="","",IF(C24="","",LOOKUP(C24,Miniplan,'Plan comptable'!$A$2:$A$73))) -> 22 | K24: =IF($L24="","",IF(E24="","",LOOKUP(E24,Miniplan,'Plan comptable'!$A$2:$A$73))) ->  | L24: 200 | M24: 200
C25: 5270 | D25: =IF(C25>0,VLOOKUP(C25,'Plan comptable'!$B$2:$C$118,2),"") -> Charges sociales | F25: =IF(E25>0,VLOOKUP(E25,'Plan comptable'!$B$2:$C$118,2),"") ->  | G25: + Participation ass. maladie B | H25: ='Corrigé A et B'!L55 -> 0.00 | J25: =IF($L25="","",IF(C25="","",LOOKUP(C25,Miniplan,'Plan comptable'!$A$2:$A$73))) ->  | K25: =IF($L25="","",IF(E25="","",LOOKUP(E25,Miniplan,'Plan comptable'!$A$2:$A$73))) -> 
C26: 6700 | D26: =IF(C26>0,VLOOKUP(C26,'Plan comptable'!$B$2:$C$118,2),"") -> ACE | F26: =IF(E26>0,VLOOKUP(E26,'Plan comptable'!$B$2:$C$118,2),"") ->  | G26: + Frais de déplacements B | H26: ='Corrigé A et B'!L58 -> 0.00 | J26: =IF($L26="","",IF(C26="","",LOOKUP(C26,Miniplan,'Plan comptable'!$A$2:$A$73))) ->  | K26: =IF($L26="","",IF(E26="","",LOOKUP(E26,Miniplan,'Plan comptable'!$A$2:$A$73))) -> 
C27: 5200 | D27: =IF(C27>0,VLOOKUP(C27,'Plan comptable'!$B$2:$C$118,2),"") -> Salaires | F27: =IF(E27>0,VLOOKUP(E27,'Plan comptable'!$B$2:$C$118,2),"") ->  | G27: + Arrondis | H27: ='Corrigé A et B'!L59 -> 0.93 | J27: =IF($L27="","",IF(C27="","",LOOKUP(C27,Miniplan,'Plan comptable'!$A$2:$A$73))) -> 37 | K27: =IF($L27="","",IF(E27="","",LOOKUP(E27,Miniplan,'Plan comptable'!$A$2:$A$73))) ->  | L27: 0.93 | M27: 0.93
D28: =IF(C28>0,VLOOKUP(C28,'Plan comptable'!$B$2:$C$118,2),"") ->  | E28: 2170 | F28: =IF(E28>0,VLOOKUP(E28,'Plan comptable'!$B$2:$C$118,2),"") -> Dettes AVS / AC | G28: - Retenue AVS / AC B | I28: ='Corrigé A et B'!N51 -> 309.19 | J28: =IF($L28="","",IF(C28="","",LOOKUP(C28,Miniplan,'Plan comptable'!$A$2:$A$73))) ->  | K28: =IF($L28="","",IF(E28="","",LOOKUP(E28,Miniplan,'Plan comptable'!$A$2:$A$73))) -> 20 | L28: 309.19 | M28: 309.19
D29: =IF(C29>0,VLOOKUP(C29,'Plan comptable'!$B$2:$C$118,2),"") ->  | E29: 2175 | F29: =IF(E29>0,VLOOKUP(E29,'Plan comptable'!$B$2:$C$118,2),"") -> Dettes LPP | G29: - Retenue 2ème pilier B | I29: ='Corrigé A et B'!K49 -> 228.20 | J29: =IF($L29="","",IF(C29="","",LOOKUP(C29,Miniplan,'Plan comptable'!$A$2:$A$73))) ->  | K29: =IF($L29="","",IF(E29="","",LOOKUP(E29,Miniplan,'Plan comptable'!$A$2:$A$73))) -> 21 | L29: 228.2 | M29: 228.2
D30: =IF(C30>0,VLOOKUP(C30,'Plan comptable'!$B$2:$C$118,2),"") ->  | E30: 5270 | F30: =IF(E30>0,VLOOKUP(E30,'Plan comptable'!$B$2:$C$118,2),"") -> Charges sociales | G30: - Retenue AANP B | I30: ='Corrigé A et B'!K50 -> 71.54 | J30: =IF($L30="","",IF(C30="","",LOOKUP(C30,Miniplan,'Plan comptable'!$A$2:$A$73))) ->  | K30: =IF($L30="","",IF(E30="","",LOOKUP(E30,Miniplan,'Plan comptable'!$A$2:$A$73))) -> 38 | L30: 71.54 | M30: 71.54
D31: =IF(C31>0,VLOOKUP(C31,'Plan comptable'!$B$2:$C$118,2),"") ->  | E31: 1110 | F31: =IF(E31>0,VLOOKUP(E31,'Plan comptable'!$B$2:$C$118,2),"") -> Autres créances | G31: - Avance de salaire B | I31: ='Corrigé A et B'!L54 -> 500.00 | J31: =IF($L31="","",IF(C31="","",LOOKUP(C31,Miniplan,'Plan comptable'!$A$2:$A$73))) ->  | K31: =IF($L31="","",IF(E31="","",LOOKUP(E31,Miniplan,'Plan comptable'!$A$2:$A$73))) -> 9 | L31: 500 | M31: 500
D32: =IF(C32>0,VLOOKUP(C32,'Plan comptable'!$B$2:$C$118,2),"") ->  | E32: 1010 | F32: =IF(E32>0,VLOOKUP(E32,'Plan comptable'!$B$2:$C$118,2),"") -> Poste | G32: Salaire net versé B | I32: ='Corrigé A et B'!L60 -> 3,992.00 | J32: =IF($L32="","",IF(C32="","",LOOKUP(C32,Miniplan,'Plan comptable'!$A$2:$A$73))) ->  | K32: =IF($L32="","",IF(E32="","",LOOKUP(E32,Miniplan,'Plan comptable'!$A$2:$A$73))) -> 2 | L32: 3992 | M32: 3992
D33: =IF(C33>0,VLOOKUP(C33,'Plan comptable'!$B$2:$C$118,2),"") ->  | F33: =IF(E33>0,VLOOKUP(E33,'Plan comptable'!$B$2:$C$118,2),"") ->  | I33: 0.10 | J33: =IF($L33="","",IF(C33="","",LOOKUP(C33,Miniplan,'Plan comptable'!$A$2:$A$73))) ->  | K33: =IF($L33="","",IF(E33="","",LOOKUP(E33,Miniplan,'Plan comptable'!$A$2:$A$73))) ->  | L33: 0.1 | M33: 0.1
B34: 2C | C34: 5200 | D34: =IF(C34>0,VLOOKUP(C34,'Plan comptable'!$B$2:$C$118,2),"") -> Salaires | F34: =IF(E34>0,VLOOKUP(E34,'Plan comptable'!$B$2:$C$118,2),"") ->  | G34: ="Salaire brut " &'Données générales '!G20 -> Salaire brut Bonzon Nathalie | H34: ='Corrigé C et D '!L10 -> 7,200.00 | J34: =IF($L34="","",IF(C34="","",LOOKUP(C34,Miniplan,'Plan comptable'!$A$2:$A$73))) -> 37 | K34: =IF($L34="","",IF(E34="","",LOOKUP(E34,Miniplan,'Plan comptable'!$A$2:$A$73))) ->  | L34: 7200 | M34: 7200
C35: 2180 | D35: =IF(C35>0,VLOOKUP(C35,'Plan comptable'!$B$2:$C$118,2),"") -> Dettes Caisse AF | F35: =IF(E35>0,VLOOKUP(E35,'Plan comptable'!$B$2:$C$118,2),"") ->  | G35: + Allocations familiales C | H35: ='Corrigé C et D '!L12 -> 700.00 | J35: =IF($L35="","",IF(C35="","",LOOKUP(C35,Miniplan,'Plan comptable'!$A$2:$A$73))) -> 22 | K35: =IF($L35="","",IF(E35="","",LOOKUP(E35,Miniplan,'Plan comptable'!$A$2:$A$73))) ->  | L35: 700 | M35: 700
C36: 5270 | D36: =IF(C36>0,VLOOKUP(C36,'Plan comptable'!$B$2:$C$118,2),"") -> Charges sociales | F36: =IF(E36>0,VLOOKUP(E36,'Plan comptable'!$B$2:$C$118,2),"") ->  | G36: + Participation ass. maladie C | H36: ='Corrigé C et D '!L23 -> 0.00 | J36: =IF($L36="","",IF(C36="","",LOOKUP(C36,Miniplan,'Plan comptable'!$A$2:$A$73))) ->  | K36: =IF($L36="","",IF(E36="","",LOOKUP(E36,Miniplan,'Plan comptable'!$A$2:$A$73))) -> 
C37: 6700 | D37: =IF(C37>0,VLOOKUP(C37,'Plan comptable'!$B$2:$C$118,2),"") -> ACE | F37: =IF(E37>0,VLOOKUP(E37,'Plan comptable'!$B$2:$C$118,2),"") ->  | G37: + Frais de déplacements C | H37: ='Corrigé C et D '!L26 -> 420.00 | J37: =IF($L37="","",IF(C37="","",LOOKUP(C37,Miniplan,'Plan comptable'!$A$2:$A$73))) -> 49 | K37: =IF($L37="","",IF(E37="","",LOOKUP(E37,Miniplan,'Plan comptable'!$A$2:$A$73))) ->  | L37: 420 | M37: 420
C38: 5200 | D38: =IF(C38>0,VLOOKUP(C38,'Plan comptable'!$B$2:$C$118,2),"") -> Salaires | F38: =IF(E38>0,VLOOKUP(E38,'Plan comptable'!$B$2:$C$118,2),"") ->  | G38: + Arrondis | H38: ='Corrigé C et D '!L27 -> 0.24 | J38: =IF($L38="","",IF(C38="","",LOOKUP(C38,Miniplan,'Plan comptable'!$A$2:$A$73))) -> 37 | K38: =IF($L38="","",IF(E38="","",LOOKUP(E38,Miniplan,'Plan comptable'!$A$2:$A$73))) ->  | L38: 0.24 | M38: 0.24
D39: =IF(C39>0,VLOOKUP(C39,'Plan comptable'!$B$2:$C$118,2),"") ->  | E39: 2170 | F39: =IF(E39>0,VLOOKUP(E39,'Plan comptable'!$B$2:$C$118,2),"") -> Dettes AVS / AC | G39: - Retenue AVS / AC C | I39: ='Corrigé C et D '!N19 -> 454.32 | J39: =IF($L39="","",IF(C39="","",LOOKUP(C39,Miniplan,'Plan comptable'!$A$2:$A$73))) ->  | K39: =IF($L39="","",IF(E39="","",LOOKUP(E39,Miniplan,'Plan comptable'!$A$2:$A$73))) -> 20 | L39: 454.32 | M39: 454.32
D40: =IF(C40>0,VLOOKUP(C40,'Plan comptable'!$B$2:$C$118,2),"") ->  | E40: 2175 | F40: =IF(E40>0,VLOOKUP(E40,'Plan comptable'!$B$2:$C$118,2),"") -> Dettes LPP | G40: - Retenue 2ème pilier C | I40: ='Corrigé C et D '!K17 -> 397.80 | J40: =IF($L40="","",IF(C40="","",LOOKUP(C40,Miniplan,'Plan comptable'!$A$2:$A$73))) ->  | K40: =IF($L40="","",IF(E40="","",LOOKUP(E40,Miniplan,'Plan comptable'!$A$2:$A$73))) -> 21 | L40: 397.8 | M40: 397.8
D41: =IF(C41>0,VLOOKUP(C41,'Plan comptable'!$B$2:$C$118,2),"") ->  | E41: 5270 | F41: =IF(E41>0,VLOOKUP(E41,'Plan comptable'!$B$2:$C$118,2),"") -> Charges sociales | G41: - Retenue AANP C | I41: ='Corrigé C et D '!K18 -> 105.12 | J41: =IF($L41="","",IF(C41="","",LOOKUP(C41,Miniplan,'Plan comptable'!$A$2:$A$73))) ->  | K41: =IF($L41="","",IF(E41="","",LOOKUP(E41,Miniplan,'Plan comptable'!$A$2:$A$73))) -> 38 | L41: 105.12 | M41: 105.12
D42: =IF(C42>0,VLOOKUP(C42,'Plan comptable'!$B$2:$C$118,2),"") ->  | E42: 1110 | F42: =IF(E42>0,VLOOKUP(E42,'Plan comptable'!$B$2:$C$118,2),"") -> Autres créances | G42: - Avance de salaire C | I42: ='Corrigé C et D '!L22 -> 0.00 | J42: =IF($L42="","",IF(C42="","",LOOKUP(C42,Miniplan,'Plan comptable'!$A$2:$A$73))) ->  | K42: =IF($L42="","",IF(E42="","",LOOKUP(E42,Miniplan,'Plan comptable'!$A$2:$A$73))) -> 
D43: =IF(C43>0,VLOOKUP(C43,'Plan comptable'!$B$2:$C$118,2),"") ->  | E43: 1010 | F43: =IF(E43>0,VLOOKUP(E43,'Plan comptable'!$B$2:$C$118,2),"") -> Poste | G43: Salaire net versé C | I43: ='Corrigé C et D '!L28 -> 7,363.00 | J43: =IF($L43="","",IF(C43="","",LOOKUP(C43,Miniplan,'Plan comptable'!$A$2:$A$73))) ->  | K43: =IF($L43="","",IF(E43="","",LOOKUP(E43,Miniplan,'Plan comptable'!$A$2:$A$73))) -> 2 | L43: 7363 | M43: 7363
D44: =IF(C44>0,VLOOKUP(C44,'Plan comptable'!$B$2:$C$118,2),"") ->  | F44: =IF(E44>0,VLOOKUP(E44,'Plan comptable'!$B$2:$C$118,2),"") ->  | I44: 0.10 | J44: =IF($L44="","",IF(C44="","",LOOKUP(C44,Miniplan,'Plan comptable'!$A$2:$A$73))) ->  | K44: =IF($L44="","",IF(E44="","",LOOKUP(E44,Miniplan,'Plan comptable'!$A$2:$A$73))) ->  | L44: 0.1 | M44: 0.1
B45: 2D | C45: 5200 | D45: =IF(C45>0,VLOOKUP(C45,'Plan comptable'!$B$2:$C$118,2),"") -> Salaires | F45: =IF(E45>0,VLOOKUP(E45,'Plan comptable'!$B$2:$C$118,2),"") ->  | G45: ="Salaire brut " &'Données générales '!I20 -> Salaire brut Dzanovic Damira | H45: ='Corrigé C et D '!L42 -> 12,700.00 | J45: =IF($L45="","",IF(C45="","",LOOKUP(C45,Miniplan,'Plan comptable'!$A$2:$A$73))) -> 37 | K45: =IF($L45="","",IF(E45="","",LOOKUP(E45,Miniplan,'Plan comptable'!$A$2:$A$73))) ->  | L45: 12700 | M45: 12700
C46: 2180 | D46: =IF(C46>0,VLOOKUP(C46,'Plan comptable'!$B$2:$C$118,2),"") -> Dettes Caisse AF | F46: =IF(E46>0,VLOOKUP(E46,'Plan comptable'!$B$2:$C$118,2),"") ->  | G46: + Allocations familiales D | H46: ='Corrigé C et D '!L44 -> 600.00 | J46: =IF($L46="","",IF(C46="","",LOOKUP(C46,Miniplan,'Plan comptable'!$A$2:$A$73))) -> 22 | K46: =IF($L46="","",IF(E46="","",LOOKUP(E46,Miniplan,'Plan comptable'!$A$2:$A$73))) ->  | L46: 600 | M46: 600
C47: 5270 | D47: =IF(C47>0,VLOOKUP(C47,'Plan comptable'!$B$2:$C$118,2),"") -> Charges sociales | F47: =IF(E47>0,VLOOKUP(E47,'Plan comptable'!$B$2:$C$118,2),"") ->  | G47: + Participation ass. maladie D | H47: ='Corrigé C et D '!L55 -> 0.00 | J47: =IF($L47="","",IF(C47="","",LOOKUP(C47,Miniplan,'Plan comptable'!$A$2:$A$73))) ->  | K47: =IF($L47="","",IF(E47="","",LOOKUP(E47,Miniplan,'Plan comptable'!$A$2:$A$73))) -> 
C48: 6700 | D48: =IF(C48>0,VLOOKUP(C48,'Plan comptable'!$B$2:$C$118,2),"") -> ACE | F48: =IF(E48>0,VLOOKUP(E48,'Plan comptable'!$B$2:$C$118,2),"") ->  | G48: + Frais de déplacements D | H48: ='Corrigé C et D '!L58 -> 520.00 | J48: =IF($L48="","",IF(C48="","",LOOKUP(C48,Miniplan,'Plan comptable'!$A$2:$A$73))) -> 49 | K48: =IF($L48="","",IF(E48="","",LOOKUP(E48,Miniplan,'Plan comptable'!$A$2:$A$73))) ->  | L48: 520 | M48: 520
C49: 5200 | D49: =IF(C49>0,VLOOKUP(C49,'Plan comptable'!$B$2:$C$118,2),"") -> Salaires | F49: =IF(E49>0,VLOOKUP(E49,'Plan comptable'!$B$2:$C$118,2),"") ->  | G49: + Arrondis | H49: ='Corrigé C et D '!L59 -> 0.39 | J49: =IF($L49="","",IF(C49="","",LOOKUP(C49,Miniplan,'Plan comptable'!$A$2:$A$73))) -> 37 | K49: =IF($L49="","",IF(E49="","",LOOKUP(E49,Miniplan,'Plan comptable'!$A$2:$A$73))) ->  | L49: 0.39 | M49: 0.39
D50: =IF(C50>0,VLOOKUP(C50,'Plan comptable'!$B$2:$C$118,2),"") ->  | E50: 2170 | F50: =IF(E50>0,VLOOKUP(E50,'Plan comptable'!$B$2:$C$118,2),"") -> Dettes AVS / AC | G50: - Retenue AVS / AC D | I50: ='Corrigé C et D '!N51 -> 788.17 | J50: =IF($L50="","",IF(C50="","",LOOKUP(C50,Miniplan,'Plan comptable'!$A$2:$A$73))) ->  | K50: =IF($L50="","",IF(E50="","",LOOKUP(E50,Miniplan,'Plan comptable'!$A$2:$A$73))) -> 20 | L50: 788.17 | M50: 788.17
D51: =IF(C51>0,VLOOKUP(C51,'Plan comptable'!$B$2:$C$118,2),"") ->  | E51: 2175 | F51: =IF(E51>0,VLOOKUP(E51,'Plan comptable'!$B$2:$C$118,2),"") -> Dettes LPP | G51: - Retenue 2ème pilier D | I51: ='Corrigé C et D '!K49 -> 397.80 | J51: =IF($L51="","",IF(C51="","",LOOKUP(C51,Miniplan,'Plan comptable'!$A$2:$A$73))) ->  | K51: =IF($L51="","",IF(E51="","",LOOKUP(E51,Miniplan,'Plan comptable'!$A$2:$A$73))) -> 21 | L51: 397.8 | M51: 397.8
D52: =IF(C52>0,VLOOKUP(C52,'Plan comptable'!$B$2:$C$118,2),"") ->  | E52: 5270 | F52: =IF(E52>0,VLOOKUP(E52,'Plan comptable'!$B$2:$C$118,2),"") -> Charges sociales | G52: - Retenue AANP D | I52: ='Corrigé C et D '!K50 -> 185.42 | J52: =IF($L52="","",IF(C52="","",LOOKUP(C52,Miniplan,'Plan comptable'!$A$2:$A$73))) ->  | K52: =IF($L52="","",IF(E52="","",LOOKUP(E52,Miniplan,'Plan comptable'!$A$2:$A$73))) -> 38 | L52: 185.42 | M52: 185.42
D53: =IF(C53>0,VLOOKUP(C53,'Plan comptable'!$B$2:$C$118,2),"") ->  | E53: 1110 | F53: =IF(E53>0,VLOOKUP(E53,'Plan comptable'!$B$2:$C$118,2),"") -> Autres créances | G53: - Avance de salaire D | I53: ='Corrigé C et D '!L54 -> 0.00 | J53: =IF($L53="","",IF(C53="","",LOOKUP(C53,Miniplan,'Plan comptable'!$A$2:$A$73))) ->  | K53: =IF($L53="","",IF(E53="","",LOOKUP(E53,Miniplan,'Plan comptable'!$A$2:$A$73))) -> 
D54: =IF(C54>0,VLOOKUP(C54,'Plan comptable'!$B$2:$C$118,2),"") ->  | E54: 1010 | F54: =IF(E54>0,VLOOKUP(E54,'Plan comptable'!$B$2:$C$118,2),"") -> Poste | G54: Salaire net versé | I54: ='Corrigé C et D '!L60 -> 12,449.00 | J54: =IF($L54="","",IF(C54="","",LOOKUP(C54,Miniplan,'Plan comptable'!$A$2:$A$73))) ->  | K54: =IF($L54="","",IF(E54="","",LOOKUP(E54,Miniplan,'Plan comptable'!$A$2:$A$73))) -> 2 | L54: 12449 | M54: 12449
D55: =IF(C55>0,VLOOKUP(C55,'Plan comptable'!$B$2:$C$118,2),"") ->  | F55: =IF(E55>0,VLOOKUP(E55,'Plan comptable'!$B$2:$C$118,2),"") ->  | I55: 0.10 | J55: =IF($L55="","",IF(C55="","",LOOKUP(C55,Miniplan,'Plan comptable'!$A$2:$A$73))) ->  | K55: =IF($L55="","",IF(E55="","",LOOKUP(E55,Miniplan,'Plan comptable'!$A$2:$A$73))) ->  | L55: 0.1 | M55: 0.1
B56: 3 | C56: 5270 | D56: =IF(C56>0,VLOOKUP(C56,'Plan comptable'!$B$2:$C$118,2),"") -> Charges sociales | F56: =IF(E56>0,VLOOKUP(E56,'Plan comptable'!$B$2:$C$118,2),"") ->  | H56: =SUM(I57:I60) -> 2,876.07 | J56: =IF($L56="","",IF(C56="","",LOOKUP(C56,Miniplan,'Plan comptable'!$A$2:$A$73))) -> 38 | K56: =IF($L56="","",IF(E56="","",LOOKUP(E56,Miniplan,'Plan comptable'!$A$2:$A$73))) ->  | L56: 2876.07 | M56: 2876.07
D57: =IF(C57>0,VLOOKUP(C57,'Plan comptable'!$B$2:$C$118,2),"") ->  | E57: 2170 | F57: =IF(E57>0,VLOOKUP(E57,'Plan comptable'!$B$2:$C$118,2),"") -> Dettes AVS / AC | G57: ="Part patronale AVS / "&'Corrigé C et D '!E73 -> Part patronale AVS / 24800 | I57: ='Corrigé C et D '!E73* 'Exercice à imprimer'!I6/100 -> 1,336.72 | J57: =IF($L57="","",IF(C57="","",LOOKUP(C57,Miniplan,'Plan comptable'!$A$2:$A$73))) ->  | K57: =IF($L57="","",IF(E57="","",LOOKUP(E57,Miniplan,'Plan comptable'!$A$2:$A$73))) -> 20 | L57: 1336.72 | M57: 1336.72
D58: =IF(C58>0,VLOOKUP(C58,'Plan comptable'!$B$2:$C$118,2),"") ->  | E58: 2170 | F58: =IF(E58>0,VLOOKUP(E58,'Plan comptable'!$B$2:$C$118,2),"") -> Dettes AVS / AC | G58: ="Part patronale AC1 / "&'Corrigé C et D '!E74 -> Part patronale AC1 / 22600 | I58: ='Corrigé C et D '!E74*'Données générales '!E8/100 -> 248.60 | J58: =IF($L58="","",IF(C58="","",LOOKUP(C58,Miniplan,'Plan comptable'!$A$2:$A$73))) ->  | K58: =IF($L58="","",IF(E58="","",LOOKUP(E58,Miniplan,'Plan comptable'!$A$2:$A$73))) -> 20 | L58: =IF(SUM(H58:I58)=0,"",IF(H58="",I58,H58)) -> 248.6 | M58: 248.6
D59: =IF(C59>0,VLOOKUP(C59,'Plan comptable'!$B$2:$C$118,2),"") ->  | E59: 2170 | F59: =IF(E59>0,VLOOKUP(E59,'Plan comptable'!$B$2:$C$118,2),"") -> Dettes AVS / AC | G59: ="Part patronale AC2 / "&'Corrigé C et D '!E75 -> Part patronale AC2 / 2200 | I59: ='Corrigé C et D '!E75*'Données générales '!E9/100 -> 11.00 | J59: =IF($L59="","",IF(C59="","",LOOKUP(C59,Miniplan,'Plan comptable'!$A$2:$A$73))) ->  | K59: =IF($L59="","",IF(E59="","",LOOKUP(E59,Miniplan,'Plan comptable'!$A$2:$A$73))) -> 20 | L59: =IF(SUM(H59:I59)=0,"",IF(H59="",I59,H59)) -> 11 | M59: 11
D60: =IF(C60>0,VLOOKUP(C60,'Plan comptable'!$B$2:$C$118,2),"") ->  | E60: 2175 | F60: =IF(E60>0,VLOOKUP(E60,'Plan comptable'!$B$2:$C$118,2),"") -> Dettes LPP | G60: ="Part patronale LPP / " &'Corrigé C et D '!E76 -> Part patronale LPP / 12797.5 | I60: ='Corrigé C et D '!E76*'Données générales '!E5/100 -> 1,279.75 | J60: =IF($L60="","",IF(C60="","",LOOKUP(C60,Miniplan,'Plan comptable'!$A$2:$A$73))) ->  | K60: =IF($L60="","",IF(E60="","",LOOKUP(E60,Miniplan,'Plan comptable'!$A$2:$A$73))) -> 21 | L60: 1279.75 | M60: 1279.75
D61: =IF(C61>0,VLOOKUP(C61,'Plan comptable'!$B$2:$C$118,2),"") ->  | F61: =IF(E61>0,VLOOKUP(E61,'Plan comptable'!$B$2:$C$118,2),"") ->  | I61: 0.10 | J61: =IF($L61="","",IF(C61="","",LOOKUP(C61,Miniplan,'Plan comptable'!$A$2:$A$73))) ->  | K61: =IF($L61="","",IF(E61="","",LOOKUP(E61,Miniplan,'Plan comptable'!$A$2:$A$73))) ->  | L61: 0.1 | M61: 0.1
B62: 4 | C62: 2170 | D62: =IF(C62>0,VLOOKUP(C62,'Plan comptable'!$B$2:$C$118,2),"") -> Dettes AVS / AC | F62: =IF(E62>0,VLOOKUP(E62,'Plan comptable'!$B$2:$C$118,2),"") ->  | G62: Règlement dette AVS | H62: =('Exercice à imprimer'!S6 * -1)+('Corrigé C et D '!E73* (( 'Exercice à imprimer'!I6 +'Exercice à imprimer'!K6)/100)) -> 10,628.80 | J62: =IF($L62="","",IF(C62="","",LOOKUP(C62,Miniplan,'Plan comptable'!$A$2:$A$73))) -> 20 | K62: =IF($L62="","",IF(E62="","",LOOKUP(E62,Miniplan,'Plan comptable'!$A$2:$A$73))) ->  | L62: 10628.8 | M62: 10628.8
C63: 2170 | D63: =IF(C63>0,VLOOKUP(C63,'Plan comptable'!$B$2:$C$118,2),"") -> Dettes AVS / AC | F63: =IF(E63>0,VLOOKUP(E63,'Plan comptable'!$B$2:$C$118,2),"") ->  | G63: Règlement dette AC1 | H63: =('Corrigé C et D '!E74*'Données générales '!D8) -> 497.20 | J63: =IF($L63="","",IF(C63="","",LOOKUP(C63,Miniplan,'Plan comptable'!$A$2:$A$73))) -> 20 | K63: =IF($L63="","",IF(E63="","",LOOKUP(E63,Miniplan,'Plan comptable'!$A$2:$A$73))) ->  | L63: =IF(SUM(H63:I63)=0,"",IF(H63="",I63,H63)) -> 497.2 | M63: 497.2
C64: 2170 | D64: =IF(C64>0,VLOOKUP(C64,'Plan comptable'!$B$2:$C$118,2),"") -> Dettes AVS / AC | F64: =IF(E64>0,VLOOKUP(E64,'Plan comptable'!$B$2:$C$118,2),"") ->  | G64: Règlement dette AC2 | H64: =('Corrigé C et D '!E75*'Données générales '!D9) -> 22.00 | J64: =IF($L64="","",IF(C64="","",LOOKUP(C64,Miniplan,'Plan comptable'!$A$2:$A$73))) -> 20 | K64: =IF($L64="","",IF(E64="","",LOOKUP(E64,Miniplan,'Plan comptable'!$A$2:$A$73))) ->  | L64: =IF(SUM(H64:I64)=0,"",IF(H64="",I64,H64)) -> 22 | M64: 22
C65: 2175 | D65: =IF(C65>0,VLOOKUP(C65,'Plan comptable'!$B$2:$C$118,2),"") -> Dettes LPP | F65: =IF(E65>0,VLOOKUP(E65,'Plan comptable'!$B$2:$C$118,2),"") ->  | G65: Règlement dette LPP | H65: =('Exercice à imprimer'!S7*-1) +('Corrigé C et D '!E76*'Données générales '!D5) -> 13,703.55 | J65: =IF($L65="","",IF(C65="","",LOOKUP(C65,Miniplan,'Plan comptable'!$A$2:$A$73))) -> 21 | K65: =IF($L65="","",IF(E65="","",LOOKUP(E65,Miniplan,'Plan comptable'!$A$2:$A$73))) ->  | L65: 13703.55 | M65: 13703.55
D66: =IF(C66>0,VLOOKUP(C66,'Plan comptable'!$B$2:$C$118,2),"") ->  | E66: 1010 | F66: =IF(E66>0,VLOOKUP(E66,'Plan comptable'!$B$2:$C$118,2),"") -> Poste | I66: =SUM(H62:H65) -> 24,851.55 | J66: =IF($L66="","",IF(C66="","",LOOKUP(C66,Miniplan,'Plan comptable'!$A$2:$A$73))) ->  | K66: =IF($L66="","",IF(E66="","",LOOKUP(E66,Miniplan,'Plan comptable'!$A$2:$A$73))) -> 2 | L66: 24851.55 | M66: 24851.55
D67: =IF(C67>0,VLOOKUP(C67,'Plan comptable'!$B$2:$C$118,2),"") ->  | F67: =IF(E67>0,VLOOKUP(E67,'Plan comptable'!$B$2:$C$118,2),"") ->  | I67: 0.10 | J67: =IF($L67="","",IF(C67="","",LOOKUP(C67,Miniplan,'Plan comptable'!$A$2:$A$73))) ->  | K67: =IF($L67="","",IF(E67="","",LOOKUP(E67,Miniplan,'Plan comptable'!$A$2:$A$73))) ->  | L67: =IF(SUM(H67:I67)=0,"",IF(H67="",I67,H67)) -> 0.1 | M67: 0.1
B68: 5 | C68: 5270 | D68: =IF(C68>0,VLOOKUP(C68,'Plan comptable'!$B$2:$C$118,2),"") -> Charges sociales | E68: 2180 | F68: =IF(E68>0,VLOOKUP(E68,'Plan comptable'!$B$2:$C$118,2),"") -> Dettes Caisse AF | G68: ="Dû à la caisse AF 2% / " &'Exercice à imprimer'!J48 -> Dû à la caisse AF 2% / 24800 | H68: ='Exercice à imprimer'!J48*2/100 -> 496.00 | I68: =H68 -> 496.00 | J68: =IF($L68="","",IF(C68="","",LOOKUP(C68,Miniplan,'Plan comptable'!$A$2:$A$73))) -> 38 | K68: =IF($L68="","",IF(E68="","",LOOKUP(E68,Miniplan,'Plan comptable'!$A$2:$A$73))) -> 22 | L68: 496 | M68: 496
C69: =IF(H69=0,0,2180) -> 0 | D69: =IF(C69>0,VLOOKUP(C69,'Plan comptable'!$B$2:$C$118,2),"") ->  | E69: =IF(H69=0,0,1010) -> 0 | F69: =IF(E69>0,VLOOKUP(E69,'Plan comptable'!$B$2:$C$118,2),"") ->  | G69: =IF(I69=0,"","Paiement à la caisse AF") ->  | H69: =IF(H68-'Corrigé C et D '!E77<1,0,H68-'Corrigé C et D '!E77) -> 0.00 | I69: =H69 -> 0.00 | J69: =IF($L69="","",IF(C69="","",LOOKUP(C69,Miniplan,'Plan comptable'!$A$2:$A$73))) ->  | K69: =IF($L69="","",IF(E69="","",LOOKUP(E69,Miniplan,'Plan comptable'!$A$2:$A$73))) -> 
C70: =IF(H70=0,0,1010) -> 1010 | D70: =IF(C70>0,VLOOKUP(C70,'Plan comptable'!$B$2:$C$118,2),"") -> Poste | E70: =IF(H70=0,0,2180) -> 2180 | F70: =IF(E70>0,VLOOKUP(E70,'Plan comptable'!$B$2:$C$118,2),"") -> Dettes Caisse AF | G70: =IF(H70=0,"","Rembours. de la caisse AF") -> Rembours. de la caisse AF | H70: =IF('Corrigé C et D '!E77-Solutions!H68<1,0,'Corrigé C et D '!E77-Solutions!H68) -> 1,004.00 | I70: =H70 -> 1,004.00 | J70: =IF($L70="","",IF(C70="","",LOOKUP(C70,Miniplan,'Plan comptable'!$A$2:$A$73))) -> 2 | K70: =IF($L70="","",IF(E70="","",LOOKUP(E70,Miniplan,'Plan comptable'!$A$2:$A$73))) -> 22 | L70: 1004 | M70: 1004
D71: =IF(C71>0,VLOOKUP(C71,'Plan comptable'!$B$2:$C$118,2),"") ->  | F71: =IF(E71>0,VLOOKUP(E71,'Plan comptable'!$B$2:$C$118,2),"") ->  | J71: =IF($L71="","",IF(C71="","",LOOKUP(C71,Miniplan,'Plan comptable'!$A$2:$A$73))) ->  | K71: =IF($L71="","",IF(E71="","",LOOKUP(E71,Miniplan,'Plan comptable'!$A$2:$A$73))) -> 
D72: =IF(C72>0,VLOOKUP(C72,'Plan comptable'!$B$2:$C$118,2),"") ->  | F72: =IF(E72>0,VLOOKUP(E72,'Plan comptable'!$B$2:$C$118,2),"") ->  | I72: 0.10 | J72: =IF($L72="","",IF(C72="","",LOOKUP(C72,Miniplan,'Plan comptable'!$A$2:$A$73))) ->  | K72: =IF($L72="","",IF(E72="","",LOOKUP(E72,Miniplan,'Plan comptable'!$A$2:$A$73))) ->  | L72: 0.1 | M72: 0.1
J73: =IF($L73="","",IF(C73="","",LOOKUP(C73,Miniplan,'Plan comptable'!$A$2:$A$73))) ->  | K73: =IF($L73="","",IF(E73="","",LOOKUP(E73,Miniplan,'Plan comptable'!$A$2:$A$73))) ->  | L73: =IF(SUM(H73:I73)=0,"",IF(H73="",I73,H73)) -> 
J74: =IF($L74="","",IF(C74="","",LOOKUP(C74,Miniplan,'Plan comptable'!$A$2:$A$73))) ->  | K74: =IF($L74="","",IF(E74="","",LOOKUP(E74,Miniplan,'Plan comptable'!$A$2:$A$73))) -> 
J75: =IF($L75="","",IF(C75="","",LOOKUP(C75,Miniplan,'Plan comptable'!$A$2:$A$73))) ->  | K75: =IF($L75="","",IF(E75="","",LOOKUP(E75,Miniplan,'Plan comptable'!$A$2:$A$73))) -> 
J76: =IF($L76="","",IF(C76="","",LOOKUP(C76,Miniplan,'Plan comptable'!$A$2:$A$73))) ->  | K76: =IF($L76="","",IF(E76="","",LOOKUP(E76,Miniplan,'Plan comptable'!$A$2:$A$73))) -> 
J77: =IF($L77="","",IF(C77="","",LOOKUP(C77,Miniplan,'Plan comptable'!$A$2:$A$73))) ->  | K77: =IF($L77="","",IF(E77="","",LOOKUP(E77,Miniplan,'Plan comptable'!$A$2:$A$73))) -> 
J78: =IF($L78="","",IF(C78="","",LOOKUP(C78,Miniplan,'Plan comptable'!$A$2:$A$73))) ->  | K78: =IF($L78="","",IF(E78="","",LOOKUP(E78,Miniplan,'Plan comptable'!$A$2:$A$73))) -> 
J79: =IF($L79="","",IF(C79="","",LOOKUP(C79,Miniplan,'Plan comptable'!$A$2:$A$73))) ->  | K79: =IF($L79="","",IF(E79="","",LOOKUP(E79,Miniplan,'Plan comptable'!$A$2:$A$73))) -> 
J80: =IF($L80="","",IF(C80="","",LOOKUP(C80,Miniplan,'Plan comptable'!$A$2:$A$73))) ->  | K80: =IF($L80="","",IF(E80="","",LOOKUP(E80,Miniplan,'Plan comptable'!$A$2:$A$73))) ->  | L80: =IF(SUM(H80:I80)=0,"",IF(H80="",I80,H80)) ->  | M80: =L80 -> 
J81: =IF($L81="","",IF(C81="","",LOOKUP(C81,Miniplan,'Plan comptable'!$A$2:$A$73))) ->  | K81: =IF($L81="","",IF(E81="","",LOOKUP(E81,Miniplan,'Plan comptable'!$A$2:$A$73))) ->  | L81: =IF(SUM(H81:I81)=0,"",IF(H81="",I81,H81)) ->  | M81: =L81 -> 
J82: =IF($L82="","",IF(C82="","",LOOKUP(C82,Miniplan,'Plan comptable'!$A$2:$A$73))) ->  | K82: =IF($L82="","",IF(E82="","",LOOKUP(E82,Miniplan,'Plan comptable'!$A$2:$A$73))) ->  | L82: =IF(SUM(H82:I82)=0,"",IF(H82="",I82,H82)) ->  | M82: =L82 -> 
J83: =IF($L83="","",IF(C83="","",LOOKUP(C83,Miniplan,'Plan comptable'!$A$2:$A$73))) ->  | K83: =IF($L83="","",IF(E83="","",LOOKUP(E83,Miniplan,'Plan comptable'!$A$2:$A$73))) ->  | L83: =IF(SUM(H83:I83)=0,"",IF(H83="",I83,H83)) -> 
J84: =IF($L84="","",IF(C84="","",LOOKUP(C84,Miniplan,'Plan comptable'!$A$2:$A$73))) ->  | K84: =IF($L84="","",IF(E84="","",LOOKUP(E84,Miniplan,'Plan comptable'!$A$2:$A$73))) -> 
J85: =IF($L85="","",IF(C85="","",LOOKUP(C85,Miniplan,'Plan comptable'!$A$2:$A$73))) ->  | K85: =IF($L85="","",IF(E85="","",LOOKUP(E85,Miniplan,'Plan comptable'!$A$2:$A$73))) -> 
J86: =IF($L86="","",IF(C86="","",LOOKUP(C86,Miniplan,'Plan comptable'!$A$2:$A$73))) ->  | K86: =IF($L86="","",IF(E86="","",LOOKUP(E86,Miniplan,'Plan comptable'!$A$2:$A$73))) -> 
J87: =IF($L87="","",IF(C87="","",LOOKUP(C87,Miniplan,'Plan comptable'!$A$2:$A$73))) ->  | K87: =IF($L87="","",IF(E87="","",LOOKUP(E87,Miniplan,'Plan comptable'!$A$2:$A$73))) -> 
J88: =IF($L88="","",IF(C88="","",LOOKUP(C88,Miniplan,'Plan comptable'!$A$2:$A$73))) ->  | K88: =IF($L88="","",IF(E88="","",LOOKUP(E88,Miniplan,'Plan comptable'!$A$2:$A$73))) -> 
J89: =IF($L89="","",IF(C89="","",LOOKUP(C89,Miniplan,'Plan comptable'!$A$2:$A$73))) ->  | K89: =IF($L89="","",IF(E89="","",LOOKUP(E89,Miniplan,'Plan comptable'!$A$2:$A$73))) -> 
J90: =IF($L90="","",IF(C90="","",LOOKUP(C90,Miniplan,'Plan comptable'!$A$2:$A$73))) ->  | K90: =IF($L90="","",IF(E90="","",LOOKUP(E90,Miniplan,'Plan comptable'!$A$2:$A$73))) -> 
J91: =IF($L91="","",IF(C91="","",LOOKUP(C91,Miniplan,'Plan comptable'!$A$2:$A$73))) ->  | K91: =IF($L91="","",IF(E91="","",LOOKUP(E91,Miniplan,'Plan comptable'!$A$2:$A$73))) -> 
J92: =IF($L92="","",IF(C92="","",LOOKUP(C92,Miniplan,'Plan comptable'!$A$2:$A$73))) ->  | K92: =IF($L92="","",IF(E92="","",LOOKUP(E92,Miniplan,'Plan comptable'!$A$2:$A$73))) -> 
J93: =IF($L93="","",IF(C93="","",LOOKUP(C93,Miniplan,'Plan comptable'!$A$2:$A$73))) ->  | K93: =IF($L93="","",IF(E93="","",LOOKUP(E93,Miniplan,'Plan comptable'!$A$2:$A$73))) -> 
J94: =IF($L94="","",IF(C94="","",LOOKUP(C94,Miniplan,'Plan comptable'!$A$2:$A$73))) ->  | K94: =IF($L94="","",IF(E94="","",LOOKUP(E94,Miniplan,'Plan comptable'!$A$2:$A$73))) -> 
J95: =IF($L95="","",IF(C95="","",LOOKUP(C95,Miniplan,'Plan comptable'!$A$2:$A$73))) ->  | K95: =IF($L95="","",IF(E95="","",LOOKUP(E95,Miniplan,'Plan comptable'!$A$2:$A$73))) -> 
J96: =IF($L96="","",IF(C96="","",LOOKUP(C96,Miniplan,'Plan comptable'!$A$2:$A$73))) ->  | K96: =IF($L96="","",IF(E96="","",LOOKUP(E96,Miniplan,'Plan comptable'!$A$2:$A$73))) -> 
J97: =IF($L97="","",IF(C97="","",LOOKUP(C97,Miniplan,'Plan comptable'!$A$2:$A$73))) ->  | K97: =IF($L97="","",IF(E97="","",LOOKUP(E97,Miniplan,'Plan comptable'!$A$2:$A$73))) -> 
J98: =IF($L98="","",IF(C98="","",LOOKUP(C98,Miniplan,'Plan comptable'!$A$2:$A$73))) ->  | K98: =IF($L98="","",IF(E98="","",LOOKUP(E98,Miniplan,'Plan comptable'!$A$2:$A$73))) -> 
J99: =IF($L99="","",IF(C99="","",LOOKUP(C99,Miniplan,'Plan comptable'!$A$2:$A$73))) ->  | K99: =IF($L99="","",IF(E99="","",LOOKUP(E99,Miniplan,'Plan comptable'!$A$2:$A$73))) -> 
J100: =IF($L100="","",IF(C100="","",LOOKUP(C100,Miniplan,'Plan comptable'!$A$2:$A$73))) ->  | K100: =IF($L100="","",IF(E100="","",LOOKUP(E100,Miniplan,'Plan comptable'!$A$2:$A$73))) -> 
J101: =IF($L101="","",IF(C101="","",LOOKUP(C101,Miniplan,'Plan comptable'!$A$2:$A$73))) ->  | K101: =IF($L101="","",IF(E101="","",LOOKUP(E101,Miniplan,'Plan comptable'!$A$2:$A$73))) -> 
J102: =IF($L102="","",IF(C102="","",LOOKUP(C102,Miniplan,'Plan comptable'!$A$2:$A$73))) ->  | K102: =IF($L102="","",IF(E102="","",LOOKUP(E102,Miniplan,'Plan comptable'!$A$2:$A$73))) -> 
J103: =IF($L103="","",IF(C103="","",LOOKUP(C103,Miniplan,'Plan comptable'!$A$2:$A$73))) ->  | K103: =IF($L103="","",IF(E103="","",LOOKUP(E103,Miniplan,'Plan comptable'!$A$2:$A$73))) -> 
J104: =IF($L104="","",IF(C104="","",LOOKUP(C104,Miniplan,'Plan comptable'!$A$2:$A$73))) ->  | K104: =IF($L104="","",IF(E104="","",LOOKUP(E104,Miniplan,'Plan comptable'!$A$2:$A$73))) -> 
J105: =IF($L105="","",IF(C105="","",LOOKUP(C105,Miniplan,'Plan comptable'!$A$2:$A$73))) ->  | K105: =IF($L105="","",IF(E105="","",LOOKUP(E105,Miniplan,'Plan comptable'!$A$2:$A$73))) -> 
J106: =IF($L106="","",IF(C106="","",LOOKUP(C106,Miniplan,'Plan comptable'!$A$2:$A$73))) ->  | K106: =IF($L106="","",IF(E106="","",LOOKUP(E106,Miniplan,'Plan comptable'!$A$2:$A$73))) -> 
J107: =IF($L107="","",IF(C107="","",LOOKUP(C107,Miniplan,'Plan comptable'!$A$2:$A$73))) ->  | K107: =IF($L107="","",IF(E107="","",LOOKUP(E107,Miniplan,'Plan comptable'!$A$2:$A$73))) -> 
J108: =IF($L108="","",IF(C108="","",LOOKUP(C108,Miniplan,'Plan comptable'!$A$2:$A$73))) ->  | K108: =IF($L108="","",IF(E108="","",LOOKUP(E108,Miniplan,'Plan comptable'!$A$2:$A$73))) -> 
J109: =IF($L109="","",IF(C109="","",LOOKUP(C109,Miniplan,'Plan comptable'!$A$2:$A$73))) ->  | K109: =IF($L109="","",IF(E109="","",LOOKUP(E109,Miniplan,'Plan comptable'!$A$2:$A$73))) -> 
J110: =IF($L110="","",IF(C110="","",LOOKUP(C110,Miniplan,'Plan comptable'!$A$2:$A$73))) ->  | K110: =IF($L110="","",IF(E110="","",LOOKUP(E110,Miniplan,'Plan comptable'!$A$2:$A$73))) -> 
J111: =IF($L111="","",IF(C111="","",LOOKUP(C111,Miniplan,'Plan comptable'!$A$2:$A$73))) ->  | K111: =IF($L111="","",IF(E111="","",LOOKUP(E111,Miniplan,'Plan comptable'!$A$2:$A$73))) ->  | L111: =IF(SUM(H111:I111)=0,"",IF(H111="",I111,H111)) -> 
J112: =IF($L112="","",IF(C112="","",LOOKUP(C112,Miniplan,'Plan comptable'!$A$2:$A$73))) ->  | K112: =IF($L112="","",IF(E112="","",LOOKUP(E112,Miniplan,'Plan comptable'!$A$2:$A$73))) -> 
J113: =IF($L113="","",IF(C113="","",LOOKUP(C113,Miniplan,'Plan comptable'!$A$2:$A$73))) ->  | K113: =IF($L113="","",IF(E113="","",LOOKUP(E113,Miniplan,'Plan comptable'!$A$2:$A$73))) -> 
J114: =IF($L114="","",IF(C114="","",LOOKUP(C114,Miniplan,'Plan comptable'!$A$2:$A$73))) ->  | K114: =IF($L114="","",IF(E114="","",LOOKUP(E114,Miniplan,'Plan comptable'!$A$2:$A$73))) -> 
J115: =IF($L115="","",IF(C115="","",LOOKUP(C115,Miniplan,'Plan comptable'!$A$2:$A$73))) ->  | K115: =IF($L115="","",IF(E115="","",LOOKUP(E115,Miniplan,'Plan comptable'!$A$2:$A$73))) -> 
J116: =IF($L116="","",IF(C116="","",LOOKUP(C116,Miniplan,'Plan comptable'!$A$2:$A$73))) ->  | K116: =IF($L116="","",IF(E116="","",LOOKUP(E116,Miniplan,'Plan comptable'!$A$2:$A$73))) -> 
J117: =IF($L117="","",IF(C117="","",LOOKUP(C117,Miniplan,'Plan comptable'!$A$2:$A$73))) ->  | K117: =IF($L117="","",IF(E117="","",LOOKUP(E117,Miniplan,'Plan comptable'!$A$2:$A$73))) -> 

Sheet Un compte
L5: 6 | M5: 20 | N5: 4 | Q5: FALSE
L7: =VLOOKUP(M5,Plan,3) -> Dettes AVS / AC | T7: Plan comptable | AA7: Résultat | AG7: Bilan
I8: =IF($H8="","",LOOKUP(C8,$T$8:$T$26,$S$8:$S$26)) ->  | J8: =IF($H8="","",LOOKUP(E8,$T$8:$T$26,$S$8:$S$26)) ->  | S8: ='Plan comptable'!A2 -> 1 | T8: ='Plan comptable'!B2 -> 1000 | U8: ='Plan comptable'!C2 -> Caisse
L9: No | M9: C/partie | N9: Libellé | O9: Débit | P9: Crédit | Q9: Solde | S9: ='Plan comptable'!A3 -> 2 | T9: ='Plan comptable'!B3 -> 1010 | U9: ='Plan comptable'!C3 -> Poste | AA9: Charges | AC9: Produits | AG9: Actif | AI9: Passif
S10: ='Plan comptable'!A4 -> 3 | T10: ='Plan comptable'!B4 -> 1020 | U10: ='Plan comptable'!C4 -> Banque
M11: 9999 | N11: Solde à nouveau | P11: 8,000.00 | Q11: 8000.00 | S11: ='Plan comptable'!A5 -> 4 | T11: ='Plan comptable'!B5 -> 1040 | U11: ='Plan comptable'!C5 -> Effets à recevoir
N12: - Retenue AVS / AC B | P12: 309.19 | Q12: 8309.19 | S12: ='Plan comptable'!A6 -> 5 | T12: ='Plan comptable'!B6 -> 1060 | U12: ='Plan comptable'!C6 -> Titres
N13: - Retenue AVS / AC C | P13: 454.32 | Q13: 8763.51 | S13: ='Plan comptable'!A7 -> 6 | T13: ='Plan comptable'!B7 -> 1100 | U13: ='Plan comptable'!C7 -> Créances clients
N14: - Retenue AVS / AC D | P14: 788.17 | Q14: 9551.68 | S14: ='Plan comptable'!A8 -> 7 | T14: ='Plan comptable'!B8 -> 1108 | U14: ='Plan comptable'!C8 -> Créances douteuses
N15: Part patronale AVS / 24800 | P15: 1,336.72 | Q15: 10888.40 | S15: ='Plan comptable'!A9 -> 8 | T15: ='Plan comptable'!B9 -> 1109 | U15: ='Plan comptable'!C9 -> Provision s/créances
N16: Part patronale AC1 / 22600 | P16: 248.60 | Q16: 11137.00 | S16: ='Plan comptable'!A10 -> 9 | T16: ='Plan comptable'!B10 -> 1110 | U16: ='Plan comptable'!C10 -> Autres créances
N17: Part patronale AC2 / 2200 | P17: 11.00 | Q17: 11148.00 | S17: ='Plan comptable'!A11 -> 10 | T17: ='Plan comptable'!B11 -> 1200 | U17: ='Plan comptable'!C11 -> Stock marchandises
L18: 4 | N18: Règlement dette AVS | O18: 10,628.80 | Q18: 519.20 | S18: ='Plan comptable'!A12 -> 11 | T18: ='Plan comptable'!B12 -> 1300 | U18: ='Plan comptable'!C12 -> Actifs transitoires
N19: Règlement dette AC1 | O19: 497.20 | Q19: 22.00 | S19: ='Plan comptable'!A13 -> 12 | T19: ='Plan comptable'!B13 -> 1500 | U19: ='Plan comptable'!C13 -> Machines
N20: Règlement dette AC2 | O20: 22.00 | Q20: 0.00 | S20: ='Plan comptable'!A14 -> 13 | T20: ='Plan comptable'!B14 -> 1501 | U20: ='Plan comptable'!C14 -> Informatique
S21: ='Plan comptable'!A15 -> 14 | T21: ='Plan comptable'!B15 -> 1510 | U21: ='Plan comptable'!C15 -> Mobilier
S22: ='Plan comptable'!A16 -> 15 | T22: ='Plan comptable'!B16 -> 1530 | U22: ='Plan comptable'!C16 -> Véhicules
S23: ='Plan comptable'!A17 -> 16 | T23: ='Plan comptable'!B17 -> 1600 | U23: ='Plan comptable'!C17 -> Immeuble
S24: ='Plan comptable'!A18 -> 17 | T24: ='Plan comptable'!B18 -> 1770 | U24: ='Plan comptable'!C18 -> Fonds de commerce
S25: ='Plan comptable'!A19 -> 18 | T25: ='Plan comptable'!B19 -> 2000 | U25: ='Plan comptable'!C19 -> Dettes fournisseurs
S26: ='Plan comptable'!A20 -> 19 | T26: ='Plan comptable'!B20 -> 2010 | U26: ='Plan comptable'!C20 -> Autres dettes | Z26: =AB26-AD26 -> 0.00 | AA26: =IF(AB26=0,"","Perte") ->  | AB26: =IF(AB10+AD10=0,0,IF(SUM(AB10:AB25)>SUM(AD10:AD25),0,SUM(AD10:AD25)-SUM(AB10:AB25))) -> 0.00 | AC26: =IF(AD26=0,"","Bénéfice") ->  | AD26: =IF(AB10+AD10=0,0,IF(SUM(AD10:AD25)>SUM(AB10:AB25),0,SUM(AB10:AB25)-SUM(AD10:AD25))) -> 0.00 | AF26: =AH26-AJ26 -> 0.00 | AG26: =IF(AH26=0,"","Bénéfice") ->  | AH26: =IF(AH10+AJ10=0,0,IF(SUM(AH10:AH25)>SUM(AJ10:AJ25),0,SUM(AJ10:AJ25)-SUM(AH10:AH25))) -> 0.00 | AI26: =IF(AJ26=0,"","Perte") ->  | AJ26: =IF(AH10+AJ10=0,0,IF(SUM(AJ10:AJ25)>SUM(AH10:AH25),0,SUM(AH10:AH25)-SUM(AJ10:AJ25))) -> 0.00
S27: ='Plan comptable'!A21 -> 20 | T27: ='Plan comptable'!B21 -> 2170 | U27: ='Plan comptable'!C21 -> Dettes AVS / AC | AB27: =IF(AB10+AD10=0,"",SUM(AB10:AB26)) ->  | AD27: =IF(AB10+AD10=0,"",SUM(AD10:AD26)) ->  | AH27: =IF(AH10+AJ10=0,"",SUM(AH10:AH26)) ->  | AJ27: =IF(AH10+AJ10=0,"",SUM(AJ10:AJ26)) -> 
S28: ='Plan comptable'!A22 -> 21 | T28: ='Plan comptable'!B22 -> 2175 | U28: ='Plan comptable'!C22 -> Dettes LPP
S29: ='Plan comptable'!A23 -> 22 | T29: ='Plan comptable'!B23 -> 2180 | U29: ='Plan comptable'!C23 -> Dettes Caisse AF
S30: ='Plan comptable'!A24 -> 23 | T30: ='Plan comptable'!B24 -> 2300 | U30: ='Plan comptable'!C24 -> Passifs transitoires
S31: ='Plan comptable'!A25 -> 24 | T31: ='Plan comptable'!B25 -> 2440 | U31: ='Plan comptable'!C25 -> Dettes hypothécaires
S32: ='Plan comptable'!A26 -> 25 | T32: ='Plan comptable'!B26 -> 2500 | U32: ='Plan comptable'!C26 -> Emprunt
S33: ='Plan comptable'!A27 -> 26 | T33: ='Plan comptable'!B27 -> 2800 | U33: ='Plan comptable'!C27 -> Capital
S34: ='Plan comptable'!A28 -> 27 | T34: ='Plan comptable'!B28 -> 0 | U34: ='Plan comptable'!C28 -> 0
S35: ='Plan comptable'!A29 -> 28 | T35: ='Plan comptable'!B29 -> 3200 | U35: ='Plan comptable'!C29 -> Ventes
S36: ='Plan comptable'!A30 -> 29 | T36: ='Plan comptable'!B30 -> 3290 | U36: ='Plan comptable'!C30 -> Déductions accord.
S37: ='Plan comptable'!A31 -> 30 | T37: ='Plan comptable'!B31 -> 3295 | U37: ='Plan comptable'!C31 -> Pertes s/créances
S38: ='Plan comptable'!A32 -> 31 | T38: ='Plan comptable'!B32 -> 3600 | U38: ='Plan comptable'!C32 -> Honoraires
S39: ='Plan comptable'!A33 -> 32 | T39: ='Plan comptable'!B33 -> 0 | U39: ='Plan comptable'!C33 -> 0
I40: =IF($H40="","",LOOKUP(C40,$T$8:$T$26,$S$8:$S$26)) ->  | J40: =IF($H40="","",LOOKUP(E40,$T$8:$T$26,$S$8:$S$26)) ->  | S40: ='Plan comptable'!A34 -> 33 | T40: ='Plan comptable'!B34 -> 4200 | U40: ='Plan comptable'!C34 -> Achats march.
S41: ='Plan comptable'!A35 -> 34 | T41: ='Plan comptable'!B35 -> 4270 | U41: ='Plan comptable'!C35 -> Frais d'achats
S42: ='Plan comptable'!A36 -> 35 | T42: ='Plan comptable'!B36 -> 4280 | U42: ='Plan comptable'!C36 -> Variations de stocks
S43: ='Plan comptable'!A37 -> 36 | T43: ='Plan comptable'!B37 -> 4290 | U43: ='Plan comptable'!C37 -> Déductions obtenues
S44: ='Plan comptable'!A38 -> 37 | T44: ='Plan comptable'!B38 -> 5200 | U44: ='Plan comptable'!C38 -> Salaires
S45: ='Plan comptable'!A39 -> 38 | T45: ='Plan comptable'!B39 -> 5270 | U45: ='Plan comptable'!C39 -> Charges sociales
S46: ='Plan comptable'!A40 -> 39 | T46: ='Plan comptable'!B40 -> 0 | U46: ='Plan comptable'!C40 -> 0
S47: ='Plan comptable'!A41 -> 40 | T47: ='Plan comptable'!B41 -> 6000 | U47: ='Plan comptable'!C41 -> Loyer
S48: ='Plan comptable'!A42 -> 41 | T48: ='Plan comptable'!B42 -> 6100 | U48: ='Plan comptable'!C42 -> Entretien & répar.
S49: ='Plan comptable'!A43 -> 42 | T49: ='Plan comptable'!B43 -> 6200 | U49: ='Plan comptable'!C43 -> Frais de véhicules
S50: ='Plan comptable'!A44 -> 43 | T50: ='Plan comptable'!B44 -> 6300 | U50: ='Plan comptable'!C44 -> Assurances
S51: ='Plan comptable'!A45 -> 44 | T51: ='Plan comptable'!B45 -> 6400 | U51: ='Plan comptable'!C45 -> Electricité
S52: ='Plan comptable'!A46 -> 45 | T52: ='Plan comptable'!B46 -> 6500 | U52: ='Plan comptable'!C46 -> Frais administration
S53: ='Plan comptable'!A47 -> 46 | T53: ='Plan comptable'!B47 -> 6510 | U53: ='Plan comptable'!C47 -> Téléphones
S54: ='Plan comptable'!A48 -> 47 | T54: ='Plan comptable'!B48 -> 6570 | U54: ='Plan comptable'!C48 -> Frais informatique
S55: ='Plan comptable'!A49 -> 48 | T55: ='Plan comptable'!B49 -> 6600 | U55: ='Plan comptable'!C49 -> Publicité
S56: ='Plan comptable'!A50 -> 49 | T56: ='Plan comptable'!B50 -> 6700 | U56: ='Plan comptable'!C50 -> ACE
S57: ='Plan comptable'!A51 -> 50 | T57: ='Plan comptable'!B51 -> 6710 | U57: ='Plan comptable'!C51 -> Dif. de caisse
S58: ='Plan comptable'!A52 -> 51 | T58: ='Plan comptable'!B52 -> 6800 | U58: ='Plan comptable'!C52 -> Intérêts-charges
S59: ='Plan comptable'!A53 -> 52 | T59: ='Plan comptable'!B53 -> 6850 | U59: ='Plan comptable'!C53 -> Intérêts-produits
S60: ='Plan comptable'!A54 -> 53 | T60: ='Plan comptable'!B54 -> 6900 | U60: ='Plan comptable'!C54 -> Amortissements
S61: ='Plan comptable'!A55 -> 54 | T61: ='Plan comptable'!B55 -> 0 | U61: ='Plan comptable'!C55 -> 0
S62: ='Plan comptable'!A56 -> 55 | T62: ='Plan comptable'!B56 -> 7400 | U62: ='Plan comptable'!C56 -> Prod. des titres
S63: ='Plan comptable'!A57 -> 56 | T63: ='Plan comptable'!B57 -> 7500 | U63: ='Plan comptable'!C57 -> Produits immeubles
S64: ='Plan comptable'!A58 -> 57 | T64: ='Plan comptable'!B58 -> 7510 | U64: ='Plan comptable'!C58 -> Charges immeubles
S65: ='Plan comptable'!A59 -> 58 | T65: ='Plan comptable'!B59 -> 8000 | U65: ='Plan comptable'!C59 -> Produits exception.
S66: ='Plan comptable'!A60 -> 59 | T66: ='Plan comptable'!B60 -> 8010 | U66: ='Plan comptable'!C60 -> Charges exception.
S67: ='Plan comptable'!A61 -> 60 | T67: ='Plan comptable'!B61 -> 8015 | U67: ='Plan comptable'!C61 -> Pertes s/créances
S68: ='Plan comptable'!A62 -> 61 | T68: ='Plan comptable'!B62 -> 9000 | U68: ='Plan comptable'!C62 -> Résultat
S69: ='Plan comptable'!A63 -> 62 | T69: ='Plan comptable'!B63 -> 9100 | U69: ='Plan comptable'!C63 -> Bilan
S70: ='Plan comptable'!A64 -> 63 | T70: ='Plan comptable'!B64 -> 9999 | U70: ='Plan comptable'!C64 -> Contrepartie
S71: ='Plan comptable'!A65 -> 64 | T71: ='Plan comptable'!B65 -> 0 | U71: ='Plan comptable'!C65 -> 0
I72: =IF($H72="","",LOOKUP(C72,$T$8:$T$26,$S$8:$S$26)) ->  | J72: =IF($H72="","",LOOKUP(E72,$T$8:$T$26,$S$8:$S$26)) ->  | S72: ='Plan comptable'!A66 -> 65 | T72: ='Plan comptable'!B66 -> 0 | U72: ='Plan comptable'!C66 -> 0
T80: © Yvan Péguiron - HEP Lausanne - fév. 06

Sheet Plan comptable
B1: Zone "Plan" | E1: Choisir un compte
A2: 1 | B2: 1000 | C2: Caisse | E2: =B2&" "&C2 -> 1000 Caisse
A3: =A2+1 -> 2 | B3: 1010 | C3: Poste | E3: =B3&" "&C3 -> 1010 Poste
A4: =A3+1 -> 3 | B4: 1020 | C4: Banque | E4: 1020 Banque
A5: 4 | B5: 1040 | C5: Effets à recevoir | E5: 1040 Effets à recevoir
A6: 5 | B6: 1060 | C6: Titres | E6: 1060 Titres
A7: 6 | B7: 1100 | C7: Créances clients | E7: 1100 Créances clients
A8: 7 | B8: 1108 | C8: Créances douteuses | E8: 1108 Créances douteuses
A9: 8 | B9: 1109 | C9: Provision s/créances | E9: 1109 Provision s/créances
A10: 9 | B10: 1110 | C10: Autres créances | E10: 1110 Autres créances
A11: 10 | B11: 1200 | C11: Stock marchandises | E11: 1200 Stock marchandises
A12: 11 | B12: 1300 | C12: Actifs transitoires | E12: 1300 Actifs transitoires
A13: 12 | B13: 1500 | C13: Machines | E13: 1500 Machines
A14: 13 | B14: 1501 | C14: Informatique | E14: 1501 Informatique
A15: 14 | B15: 1510 | C15: Mobilier | E15: 1510 Mobilier
A16: 15 | B16: 1530 | C16: Véhicules | E16: 1530 Véhicules
A17: 16 | B17: 1600 | C17: Immeuble | E17: 1600 Immeuble
A18: 17 | B18: 1770 | C18: Fonds de commerce
A19: 18 | B19: 2000 | C19: Dettes fournisseurs | E19: 2000 Dettes fournisseurs
A20: 19 | B20: 2010 | C20: Autres dettes | E20: 2010 Autres dettes
A21: 20 | B21: 2170 | C21: Dettes AVS / AC | E21: 2170 Dettes AVS / AC
A22: 21 | B22: 2175 | C22: Dettes LPP | E22: 2175 Dettes LPP
A23: 22 | B23: 2180 | C23: Dettes Caisse AF | E23: 2180 Dettes Caisse AF
A24: 23 | B24: 2300 | C24: Passifs transitoires | E24: 2300 Passifs transitoires
A25: 24 | B25: 2440 | C25: Dettes hypothécaires | E25: 2440 Dettes hypothécaires
A26: 25 | B26: 2500 | C26: Emprunt | E26: 2500 Emprunt
A27: 26 | B27: 2800 | C27: Capital | E27: 2800 Capital
A28: 27
A29: 28 | B29: 3200 | C29: Ventes | E29: 3200 Ventes
A30: 29 | B30: 3290 | C30: Déductions accord. | E30: 3290 Déductions accord.
A31: 30 | B31: 3295 | C31: Pertes s/créances | E31: 3295 Pertes s/créances
A32: 31 | B32: 3600 | C32: Honoraires | E32: 3600 Honoraires
A33: 32
A34: 33 | B34: 4200 | C34: Achats march. | E34: 4200 Achats march.
A35: 34 | B35: 4270 | C35: Frais d'achats | E35: 4270 Frais d'achats
A36: 35 | B36: 4280 | C36: Variations de stocks | E36: 4280 Variations de stocks
A37: 36 | B37: 4290 | C37: Déductions obtenues | E37: 4290 Déductions obtenues
A38: 37 | B38: 5200 | C38: Salaires | E38: 5200 Salaires
A39: 38 | B39: 5270 | C39: Charges sociales | E39: 5270 Charges sociales
A40: 39
A41: 40 | B41: 6000 | C41: Loyer | E41: 6000 Loyer
A42: 41 | B42: 6100 | C42: Entretien & répar. | E42: 6100 Entretien & répar.
A43: 42 | B43: 6200 | C43: Frais de véhicules | E43: 6200 Frais de véhicules
A44: 43 | B44: 6300 | C44: Assurances | E44: 6300 Assurances
A45: 44 | B45: 6400 | C45: Electricité | E45: 6400 Electricité
A46: 45 | B46: 6500 | C46: Frais administration | E46: 6500 Frais administration
A47: 46 | B47: 6510 | C47: Téléphones | E47: 6510 Téléphones
A48: 47 | B48: 6570 | C48: Frais informatique | E48: 6570 Frais informatique
A49: 48 | B49: 6600 | C49: Publicité | E49: 6600 Publicité
A50: 49 | B50: 6700 | C50: ACE | E50: 6700 ACE
A51: 50 | B51: 6710 | C51: Dif. de caisse | E51: 6710 Dif. de caisse
A52: 51 | B52: 6800 | C52: Intérêts-charges | E52: 6800 Intérêts-charges
A53: 52 | B53: 6850 | C53: Intérêts-produits | E53: 6850 Intérêts-produits
A54: 53 | B54: 6900 | C54: Amortissements | E54: 6900 Amortissements
A55: 54
A56: 55 | B56: 7400 | C56: Prod. des titres | E56: 7400 Prod. des titres
A57: 56 | B57: 7500 | C57: Produits immeubles | E57: 7500 Produits immeubles
A58: 57 | B58: 7510 | C58: Charges immeubles | E58: 7510 Charges immeubles
A59: 58 | B59: 8000 | C59: Produits exception. | E59: 8000 Produits exception.
A60: 59 | B60: 8010 | C60: Charges exception. | E60: 8010 Charges exception.
A61: 60 | B61: 8015 | C61: Pertes s/créances | E61: 8015 Pertes s/créances
A62: 61 | B62: 9000 | C62: Résultat | E62: 9000 Résultat
A63: 62 | B63: 9100 | C63: Bilan | E63: 9100 Bilan
A64: 63 | B64: 9999 | C64: Contrepartie | E64: 9999 Contrepartie
A65: 64
A66: 65
A67: 66
A68: 67
A69: 68
A70: 69
A71: 70
A72: 71
A73: 72
A74: 73 | E74: =B74&" "&C74 -> 
A75: =A74+1 -> 74
A76: 75
A77: 76
A78: 77
A79: 78
A80: 79
A81: 80
A82: 81
A83: 82

Sheet Fiches vides
B1: FICHE DE SALAIRE | G1: mois :
B4: Nom :
B5: Avs no | I5: AVS o/n
B6: Enfants < 16 ans | E6: 16 - 25 ans | I6: LPP o/n
C9: Décompte
C10: Salaire déterminant AVS
C12: Allocations enfants
C14: Salaire brut
C16: Charges sociales | E16: totales | G16: à charge | I16: s/CHF
C17: ./. Caisse de pens. | F17: % | H17: %
C18: ./. Ass acc non prof | F18: % | H18: % | L18: =SUM(K17:K19) -> 0.00
C19: ='Données générales '!$K$10 -> ./. AVS/AI/APG/PCfam | F19: % | H19: %
C20: ./. AC | F20: % | H20: % | L20: =SUM(K19:K21) -> 0.00
C21: ./. AC solidarité | F21: % | H21: %
C22: Autres déductions | K22: -
C23: Bonifications | E23: Assurance maladie | K23: +
C25: Frais de déplacements | E25: Nb de km | G25: Tarif | I25: Forfait
F26: km | H26: fr. | J26: fr. | K26: +
C27: Arrondi au fr. sup. | L27: =L28-(L14-L18-L22+L23+L26) -> 0.00
C28: Montant net | K28: Net :
B33: FICHE DE SALAIRE | G33: mois :
B36: Nom :
B37: Avs no | I37: AVS o/n
B38: Enfants < 16 ans | E38: 16 - 25 ans | I38: LPP o/n
C41: Décompte
C42: Salaire déterminant AVS
C44: Allocations enfants
C46: Salaire brut
C48: Charges sociales | E48: totales | G48: à charge | I48: s/CHF
C49: ./. Caisse de pens. | F49: % | H49: %
C50: ./. Ass acc non prof | F50: % | H50: % | L50: =SUM(K49:K51) -> 0.00
C51: ='Données générales '!$K$10 -> ./. AVS/AI/APG/PCfam | F51: % | H51: %
C52: ./. AC | F52: % | H52: % | L52: =SUM(K51:K53) -> 0.00
C53: ./. AC solidarité | F53: % | H53: %
C54: Autres déductions | K54: -
C55: Bonifications | E55: Assurance maladie | K55: +
C57: Frais de déplacements | E57: Nb de km | G57: Tarif | I57: Forfait
F58: km | H58: fr. | J58: fr. | K58: +
C59: Arrondi au fr. sup. | L59: =L60-(L46-L50-L54+L55+L58) -> 0.00
C60: Montant net | K60: Net :
